Workbook

Sheet 1 離婚の種類別，年次別離婚件数・百分率
A1: 第8章 離 婚
A2: 1 年次別にみた離婚の種類別離婚件数・百分率及び離婚率(人口千対)
A4: 年 次 | B4: 離婚件数 | I4: 百分率 | P4: 離婚率
B5: 総数 | C5: 協議 | D5: 調停 | E5: 審判 | F5: 和解 | G5: 請求の 認諾 | H5: 判決 | I5: 総数 | J5: 協議 | K5: 調停 | L5: 審判 | M5: 和解 | N5: 請求の 認諾 | O5: 判決
A6: 1950 昭和25年 | B6: 451 | C6: … | D6: … | E6: … | F6: … | G6: … | H6: … | I6: … | J6: … | K6: … | L6: … | M6: … | N6: … | O6: … | P6: 1.436992194 | R6: 313850
A7: 55 30 | B7: 581 | C7: … | D7: … | E7: … | F7: … | G7: … | H7: … | I7: … | J7: … | K7: … | L7: … | M7: … | N7: … | O7: … | P7: 1.361867704 | R7: 426620
A8: 60 35 | B8: 685 | C8: 611 | D8: 63 | E8: 4 | F8: … | G8: … | H8: 7 | I8: 100 | J8: 89.19708029 | K8: 9.197080292 | L8: 0.5839416058 | M8: … | N8: … | O8: 1.02189781 | P8: 1.307653687 | R8: 523839
A9: 65 40 | B9: 1174 | C9: 1071 | D9: 97 | E9: 2 | F9: … | G9: … | H9: 4 | I9: 100 | J9: 91.22657581 | K9: 8.262350937 | L9: 0.1703577513 | M9: … | N9: … | O9: 0.3407155026 | P9: 1.476900472 | R9: 794908
A10: 70 45 | B10: 1676 | C10: 1479 | D10: 187 | E10: 1 | F10: … | G10: … | H10: 9 | I10: 100 | J10: 88.24582339 | K10: 11.1575179 | L10: 0.05966587112 | M10: … | N10: … | O10: 0.5369928401 | P10: 1.659203879 | R10: 1010123
A11: 72 47 | B11: 1964 | C11: 1750 | D11: 195 | E11: 2 | F11: … | G11: … | H11: 17 | I11: 100 | J11: 89.10386965 | K11: 9.928716904 | L11: 0.1018329939 | M11: … | N11: … | O11: 0.8655804481 | P11: 1.786913317 | R11: 794908
A12: 73 48 | B12: 2144 | C12: 1904 | D12: 229 | E12: 0 | F12: … | G12: … | H12: 11 | I12: 100 | J12: 88.80597015 | K12: 10.68097015 | L12: 0 | M12: … | N12: … | O12: 0.5130597015 | P12: 1.860502249 | R12: 794908
A13: 74 49 | B13: 2293 | C13: 2051 | D13: 231 | E13: 1 | F13: … | G13: … | H13: 10 | I13: 100 | J13: 89.44614043 | K13: 10.07413868 | L13: 0.04361098997 | M13: … | N13: … | O13: 0.4361098997 | P13: 1.90845095 | R13: 794908
A14: 75 50 | B14: 2398 | C14: 2141 | D14: 239 | E14: 3 | F14: … | G14: … | H14: 15 | I14: 100 | J14: 89.28273561 | K14: 9.966638866 | L14: 0.1251042535 | M14: … | N14: … | O14: 0.6255212677 | P14: 1.932915422 | R14: 1240613
A15: 76 51 | B15: 2649 | C15: 2354 | D15: 281 | E15: 0 | F15: … | G15: … | H15: 14 | I15: 100 | J15: 88.86372216 | K15: 10.60777652 | L15: 0 | M15: … | N15: … | O15: 0.5285013213 | P15: 2.076754462 | R15: 1275548
A16: 77 52 | B16: 2757 | C16: 2464 | D16: 268 | E16: 0 | F16: … | G16: … | H16: 25 | I16: 100 | J16: 89.37250635 | K16: 9.720710918 | L16: 0 | M16: … | N16: … | O16: 0.9067827349 | P16: 2.111524004 | R16: 1305692
A17: 78 53 | B17: 2860 | C17: 2537 | D17: 304 | E17: 0 | F17: … | G17: … | H17: 19 | I17: 100 | J17: 88.70629371 | K17: 10.62937063 | L17: 0 | M17: … | N17: … | O17: 0.6643356643 | P17: 2.144389385 | R17: 1333713
A18: 79 54 | B18: 2990 | C18: 2721 | D18: 245 | E18: 0 | F18: … | G18: … | H18: 24 | I18: 100 | J18: 91.00334448 | K18: 8.193979933 | L18: 0 | M18: … | N18: … | O18: 0.8026755853 | P18: 2.187073009 | R18: 1367124
A19: 80 55 | B19: 3157 | C19: 2888 | D19: 247 | E19: 2 | F19: … | G19: … | H19: 20 | I19: 100 | J19: 91.47925245 | K19: 7.823883434 | L19: 0.06335128286 | M19: … | N19: … | O19: 0.6335128286 | P19: 2.252173522 | R19: 1401757
A20: 81 56 | B20: 3420 | C20: 3150 | D20: 251 | E20: 1 | F20: … | G20: … | H20: 18 | I20: 100 | J20: 92.10526316 | K20: 7.339181287 | L20: 0.02923976608 | M20: … | N20: … | O20: 0.5263157895 | P20: 2.38761123 | R20: 1432394
A21: 82 57 | B21: 3643 | C21: 3347 | D21: 278 | E21: 1 | F21: … | G21: … | H21: 17 | I21: 100 | J21: 91.87482844 | K21: 7.631073291 | L21: 0.02744990393 | M21: … | N21: … | O21: 0.4666483667 | P21: 2.48995951 | R21: 1463076
A22: 83 58 | B22: 3913 | C22: 3624 | D22: 262 | E22: 0 | F22: … | G22: … | H22: 27 | I22: 100 | J22: 92.61436238 | K22: 6.695629951 | L22: 0 | M22: … | N22: … | O22: 0.6900076668 | P22: 2.620253427 | R22: 1493367
A23: 84 59 | B23: 4094 | C23: 3783 | D23: 290 | E23: 1 | F23: … | G23: … | H23: 20 | I23: 100 | J23: 92.40351734 | K23: 7.083536883 | L23: 0.02442598925 | M23: … | N23: … | O23: 0.4885197851 | P23: 2.693839307 | R23: 1519764
A24: 85 60 | B24: 3879 | C24: 3621 | D24: 237 | E24: 3 | F24: … | G24: … | H24: 18 | I24: 100 | J24: 93.34880124 | K24: 6.109822119 | L24: 0.07733952049 | M24: … | N24: … | O24: 0.464037123 | P24: 2.519145244 | R24: 1539808
A25: 1986 昭和61年 | B25: 3784 | C25: 3513 | D25: 246 | E25: 2 | F25: … | G25: … | H25: 23 | I25: 100 | J25: 92.83826638 | K25: 6.501057082 | L25: 0.05285412262 | M25: … | N25: … | O25: 0.6078224101 | P25: 2.415004171 | R25: 1566871
A26: 87 62 | B26: 3467 | C26: 3227 | D26: 219 | E26: 1 | F26: … | G26: … | H26: 20 | I26: 100 | J26: 93.07758869 | K26: 6.316700317 | L26: 0.02884338044 | M26: … | N26: … | O26: 0.5768676089 | P26: 2.176116696 | R26: 1593205
A27: 88 63 | B27: 3316 | C27: 3037 | D27: 261 | E27: 1 | F27: … | G27: … | H27: 17 | I27: 100 | J27: 91.58624849 | K27: 7.87092883 | L27: 0.03015681544 | M27: … | N27: … | O27: 0.5126658625 | P27: 2.04835375 | R27: 1618861
A28: 89 平成元年 | B28: 3413 | C28: 3167 | D28: 218 | E28: 2 | F28: … | G28: … | H28: 26 | I28: 100 | J28: 92.79226487 | K28: 6.387342514 | L28: 0.0585994726 | M28: … | N28: … | O28: 0.7617931439 | P28: 2.074652224 | R28: 1645095
A29: 90 2 | B29: 3381 | C29: 3115 | D29: 237 | E29: 1 | F29: … | G29: … | H29: 28 | I29: 100 | J29: 92.13250518 | K29: 7.009760426 | L29: 0.02957704821 | M29: … | N29: … | O29: 0.8281573499 | P29: 2.026997861 | R29: 1667984
A30: 91 3 | B30: 3492 | C30: 3187 | D30: 290 | E30: 0 | F30: … | G30: … | H30: 15 | I30: 100 | J30: 91.26575029 | K30: 8.304696449 | L30: 0 | M30: … | N30: … | O30: 0.4295532646 | P30: 2.060191577 | R30: 1694988
A31: 92 4 | B31: 3714 | C31: 3453 | D31: 239 | E31: 2 | F31: … | G31: … | H31: 20 | I31: 100 | J31: 92.97253635 | K31: 6.435110393 | L31: 0.05385029618 | M31: … | N31: … | O31: 0.5385029618 | P31: 2.166244383 | R31: 1714488
A32: 93 5 | B32: 3869 | C32: 3544 | D32: 295 | E32: 0 | F32: … | G32: … | H32: 30 | I32: 100 | J32: 91.59989661 | K32: 7.624709227 | L32: 0 | M32: … | N32: … | O32: 0.7753941587 | P32: 2.238400987 | R32: 1728466
A33: 94 6 | B33: 3906 | C33: 3532 | D33: 349 | E33: 2 | F33: … | G33: … | H33: 23 | I33: 100 | J33: 90.4249872 | K33: 8.934971838 | L33: 0.05120327701 | M33: … | N33: … | O33: 0.5888376856 | P33: 2.244138868 | R33: 1740534
A34: 95 7 | B34: 4137 | C34: 3783 | D34: 327 | E34: 0 | F34: … | G34: … | H34: 27 | I34: 100 | J34: 91.44307469 | K34: 7.904278463 | L34: 0 | M34: … | N34: … | O34: 0.6526468455 | P34: 2.36128924 | R34: 1752009
A35: 96 8 | B35: 4161 | C35: 3809 | D35: 326 | E35: 2 | F35: … | G35: … | H35: 24 | I35: 100 | J35: 91.54049507 | K35: 7.834655131 | L35: 0.0480653689 | M35: … | N35: … | O35: 0.5767844268 | P35: 2.344833027 | R35: 1774540
A36: 97 9 | B36: 4495 | C36: 4104 | D36: 350 | E36: 3 | F36: … | G36: … | H36: 38 | I36: 100 | J36: 91.30144605 | K36: 7.786429366 | L36: 0.06674082314 | M36: … | N36: … | O36: 0.8453837597 | P36: 2.509461423 | R36: 1791221
A37: 98 10 | B37: 4911 | C37: 4517 | D37: 355 | E37: 3 | F37: … | G37: … | H37: 36 | I37: 100 | J37: 91.97719405 | K37: 7.228670332 | L37: 0.06108735492 | M37: … | N37: … | O37: 0.733048259 | P37: 2.722969084 | R37: 1803546
A38: 99 11 | B38: 4915 | C38: 4501 | D38: 370 | E38: 2 | F38: … | G38: … | H38: 42 | I38: 100 | J38: 91.5768057 | K38: 7.527975585 | L38: 0.04069175992 | M38: … | N38: … | O38: 0.8545269583 | P38: 2.712428995 | R38: 1812029
A39: 2000 12 | B39: 5067 | C39: 4633 | D39: 396 | E39: 1 | F39: … | G39: … | H39: 37 | I39: 100 | J39: 91.43477403 | K39: 7.815275311 | L39: 0.01973554371 | M39: … | N39: … | O39: 0.7302151174 | P39: 2.789158447 | R39: 1816677
A40: 01 13 | B40: 5482 | C40: 5079 | D40: 366 | E40: 2 | F40: … | G40: … | H40: 35 | I40: 100 | J40: 92.64866837 | K40: 6.676395476 | L40: 0.03648303539 | M40: … | N40: … | O40: 0.6384531193 | P40: 2.989859457 | R40: 1834684
A41: 02 14 | B41: 5269 | C41: 4839 | D41: 392 | E41: 0 | F41: … | G41: … | H41: 38 | I41: 100 | J41: 91.83905864 | K41: 7.439741887 | L41: 0 | M41: … | N41: … | O41: 0.7211994686 | P41: 2.854225407 | R41: 1848276
A42: 03 15 | B42: 5265 | C42: 4832 | D42: 377 | E42: 2 | F42: … | G42: … | H42: 54 | I42: 100 | J42: 91.77587844 | K42: 7.160493827 | L42: 0.03798670465 | M42: … | N42: … | O42: 1.025641026 | P42: 2.832114511 | R42: 1862361
A43: 04 16 | B43: 5140 | C43: 4634 | D43: 424 | E43: 2 | F43: 33 | G43: 0 | H43: 47 | I43: 100 | J43: 90.15564202 | K43: 8.249027237 | L43: 0.03891050584 | M43: 0.6420233463 | N43: 0 | O43: 0.9143968872 | P43: 2.744695769 | R43: 1872703
A44: 05 17 | B44: 4791 | C44: 4238 | D44: 444 | E44: 0 | F44: 45 | G44: 0 | H44: 64 | I44: 100 | J44: 88.45752453 | K44: 9.267376331 | L44: 0 | M44: 0.9392611146 | N44: 0 | O44: 1.33583803 | P44: 2.547234966 | R44: 1880863
A45: 06 18 | B45: 4698 | C45: 4248 | D45: 362 | E45: 1 | F45: 40 | G45: 0 | H45: 47 | I45: 100 | J45: 90.42145594 | K45: 7.705406556 | L45: 0.02128565347 | M45: 0.8514261388 | O45: 1 | P45: 2.487442334 | R45: 1872703
A46: 07 19 | B46: 4638 | C46: 4079 | D46: 448 | E46: 4 | F46: 39 | G46: 67 | H46: 1 | I46: 100 | J46: 87.94739112 | K46: 9.659335921 | L46: 0.08624407072 | M46: 0.8408796895 | N46: 1.444588185 | O46: 0.02156101768 | P46: 2.476634042 | R46: 1872703
A47: 08 20 | B47: 4596 | C47: 4093 | D47: 396 | E47: 1 | F47: 64 | G47: 42 | H47: 0 | I47: 100 | J47: 89.05570061 | K47: 8.61618799 | L47: 0.02175805048 | M47: 1.392515231 | N47: 0.9138381201 | O47: 0 | P47: 2.420893002 | R47: 1898473
A48: 09 21 | B48: 4595 | C48: 4049 | D48: 433 | E48: 0 | F48: 32 | G48: 80 | H48: 1 | I48: 100 | J48: 88.11751904 | K48: 9.423286181 | L48: 0 | M48: 0.6964091404 | N48: 1.741022851 | O48: 0.02176278564 | P48: 2.41298802 | R48: 1904278
A49: 10 22
A50: 11 23 | B50: 4643 | C50: 4048 | D50: 474 | E50: 6 | F50: 51 | G50: 61 | H50: 3 | I50: 100 | J50: 87.18500969 | K50: 10.20891665 | L50: 0.129226793 | M50: 1.098427741 | N50: 1.313805729 | O50: 0.06461339651 | P50: 2.415794499 | R50: 1921935
A51: 12 24 | B51: 4555 | C51: 3956 | D51: 461 | E51: 1 | F51: 55 | G51: 81 | H51: 1 | I51: 100 | J51: 86.84961581 | K51: 10.12074643 | L51: 0.02195389682 | M51: 1.207464325 | N51: 1.778265642 | O51: 0.02195389682 | P51: 2.361601347 | R51: 1928776
A52: 13 25 | B52: 4413 | C52: 3837 | D52: 408 | E52: 3 | F52: 59 | G52: 103 | H52: 3 | I52: 100 | J52: 86.94765466 | K52: 9.245411285 | L52: 0.06798096533 | M52: 1.336958985 | N52: 2.334013143 | O52: 0.06798096533 | P52: 2.279219642 | R52: 1936189
A53: 14 26 | B53: 4182 | C53: 3641 | D53: 408 | E53: 4 | F53: 49 | G53: 78 | H53: 2 | I53: 100 | J53: 87.06360593 | K53: 9.756097561 | L53: 0.0956480153 | M53: 1.171688187 | N53: 1.865136298 | O53: 0.04782400765 | P53: 2.152731735 | R53: 1942648
A54: 15 27 | B54: 4492 | C54: 3895 | D54: 452 | E54: 11 | F54: 46 | G54: 87 | H54: 1 | I54: 100 | J54: 86.70970614 | K54: 10.06233304 | L54: 0.2448797863 | M54: 1.024042743 | N54: 1.936776492 | O54: 0.02226179875 | P54: 2.311261948 | R54: 1943527
A55: 16 28 | B55: =SUM(C55:H55) -> 4096 | C55: ='4 同居期間別，離婚の種類別離婚件数及び百分率'!$B$7 -> 3541 | D55: ='4 同居期間別，離婚の種類別離婚件数及び百分率'!$B$8 -> 428 | E55: ='4 同居期間別，離婚の種類別離婚件数及び百分率'!$B$9 -> 12 | F55: ='4 同居期間別，離婚の種類別離婚件数及び百分率'!$B$10 -> 41 | G55: ='4 同居期間別，離婚の種類別離婚件数及び百分率'!$B$11 -> 74 | H55: ='4 同居期間別，離婚の種類別離婚件数及び百分率'!$B$12 -> 0 | I55: 100 | J55: =C55/$B55*100 -> 86.45019531 | K55: 10.44921875 | L55: 0.29296875 | M55: 1.000976562 | N55: 1.806640625 | O55: 0 | P55: =B55/R55*1000 -> 2.091497928 | R55: =[1]人口!$B$42 -> 1958405
A56: 1) 本市の集計による。
A59: こっちを原稿に↓ 和解、請求の認諾、判決の入替後
A60: 第8章 離 婚
A61: 1 年次別にみた離婚の種類別離婚件数・百分率及び離婚率(人口千対)
A63: 年 次 | B63: 離婚件数 | I63: 百分率 | P63: 離婚率
B64: 総数 | C64: 協議 | D64: 調停 | E64: 審判 | F64: 和解 | G64: 請求の 認諾 | H64: 判決 | I64: 総数 | J64: 協議 | K64: 調停 | L64: 審判 | M64: 和解 | N64: 請求の 認諾 | O64: 判決
A65: 1950 昭和25年 | B65: 451 | C65: … | D65: … | E65: … | F65: … | G65: … | H65: … | I65: … | J65: … | K65: … | L65: … | M65: … | N65: … | O65: … | P65: 1.436992194 | R65: 313850
A66: 55 30 | B66: 581 | C66: … | D66: … | E66: … | F66: … | G66: … | H66: … | I66: … | J66: … | K66: … | L66: … | M66: … | N66: … | O66: … | P66: 1.361867704 | R66: 426620
A67: 60 35 | B67: 685 | C67: 611 | D67: 63 | E67: 4 | F67: … | G67: … | H67: 7 | I67: 100 | J67: 89.19708029 | K67: 9.197080292 | L67: 0.5839416058 | M67: … | N67: … | O67: 1.02189781 | P67: 1.307653687 | R67: 523839
A68: 65 40 | B68: 1174 | C68: 1071 | D68: 97 | E68: 2 | F68: … | G68: … | H68: 4 | I68: 100 | J68: 91.22657581 | K68: 8.262350937 | L68: 0.1703577513 | M68: … | N68: … | O68: 0.3407155026 | P68: 1.476900472 | R68: 794908
A69: 70 45 | B69: 1676 | C69: 1479 | D69: 187 | E69: 1 | F69: … | G69: … | H69: 9 | I69: 100 | J69: 88.24582339 | K69: 11.1575179 | L69: 0.05966587112 | M69: … | N69: … | O69: 0.5369928401 | P69: 1.659203879 | R69: 1010123
A70: 72 47 | B70: 1964 | C70: 1750 | D70: 195 | E70: 2 | F70: … | G70: … | H70: 17 | I70: 100 | J70: 89.10386965 | K70: 9.928716904 | L70: 0.1018329939 | M70: … | N70: … | O70: 0.8655804481 | P70: 1.786913317 | R70: 794908
A71: 73 48 | B71: 2144 | C71: 1904 | D71: 229 | E71: 0 | F71: … | G71: … | H71: 11 | I71: 100 | J71: 88.80597015 | K71: 10.68097015 | L71: 0 | M71: … | N71: … | O71: 0.5130597015 | P71: 1.860502249 | R71: 794908
A72: 74 49 | B72: 2293 | C72: 2051 | D72: 231 | E72: 1 | F72: … | G72: … | H72: 10 | I72: 100 | J72: 89.44614043 | K72: 10.07413868 | L72: 0.04361098997 | M72: … | N72: … | O72: 0.4361098997 | P72: 1.90845095 | R72: 794908
A73: 75 50 | B73: 2398 | C73: 2141 | D73: 239 | E73: 3 | F73: … | G73: … | H73: 15 | I73: 100 | J73: 89.28273561 | K73: 9.966638866 | L73: 0.1251042535 | M73: … | N73: … | O73: 0.6255212677 | P73: 1.932915422 | R73: 1240613
A74: 76 51 | B74: 2649 | C74: 2354 | D74: 281 | E74: 0 | F74: … | G74: … | H74: 14 | I74: 100 | J74: 88.86372216 | K74: 10.60777652 | L74: 0 | M74: … | N74: … | O74: 0.5285013213 | P74: 2.076754462 | R74: 1275548
A75: 77 52 | B75: 2757 | C75: 2464 | D75: 268 | E75: 0 | F75: … | G75: … | H75: 25 | I75: 100 | J75: 89.37250635 | K75: 9.720710918 | L75: 0 | M75: … | N75: … | O75: 0.9067827349 | P75: 2.111524004 | R75: 1305692
A76: 78 53 | B76: 2860 | C76: 2537 | D76: 304 | E76: 0 | F76: … | G76: … | H76: 19 | I76: 100 | J76: 88.70629371 | K76: 10.62937063 | L76: 0 | M76: … | N76: … | O76: 0.6643356643 | P76: 2.144389385 | R76: 1333713
A77: 79 54 | B77: 2990 | C77: 2721 | D77: 245 | E77: 0 | F77: … | G77: … | H77: 24 | I77: 100 | J77: 91.00334448 | K77: 8.193979933 | L77: 0 | M77: … | N77: … | O77: 0.8026755853 | P77: 2.187073009 | R77: 1367124
A78: 80 55 | B78: 3157 | C78: 2888 | D78: 247 | E78: 2 | F78: … | G78: … | H78: 20 | I78: 100 | J78: 91.47925245 | K78: 7.823883434 | L78: 0.06335128286 | M78: … | N78: … | O78: 0.6335128286 | P78: 2.252173522 | R78: 1401757
A79: 81 56 | B79: 3420 | C79: 3150 | D79: 251 | E79: 1 | F79: … | G79: … | H79: 18 | I79: 100 | J79: 92.10526316 | K79: 7.339181287 | L79: 0.02923976608 | M79: … | N79: … | O79: 0.5263157895 | P79: 2.38761123 | R79: 1432394
A80: 82 57 | B80: 3643 | C80: 3347 | D80: 278 | E80: 1 | F80: … | G80: … | H80: 17 | I80: 100 | J80: 91.87482844 | K80: 7.631073291 | L80: 0.02744990393 | M80: … | N80: … | O80: 0.4666483667 | P80: 2.48995951 | R80: 1463076
A81: 83 58 | B81: 3913 | C81: 3624 | D81: 262 | E81: 0 | F81: … | G81: … | H81: 27 | I81: 100 | J81: 92.61436238 | K81: 6.695629951 | L81: 0 | M81: … | N81: … | O81: 0.6900076668 | P81: 2.620253427 | R81: 1493367
A82: 84 59 | B82: 4094 | C82: 3783 | D82: 290 | E82: 1 | F82: … | G82: … | H82: 20 | I82: 100 | J82: 92.40351734 | K82: 7.083536883 | L82: 0.02442598925 | M82: … | N82: … | O82: 0.4885197851 | P82: 2.693839307 | R82: 1519764
A83: 85 60 | B83: 3879 | C83: 3621 | D83: 237 | E83: 3 | F83: … | G83: … | H83: 18 | I83: 100 | J83: 93.34880124 | K83: 6.109822119 | L83: 0.07733952049 | M83: … | N83: … | O83: 0.464037123 | P83: 2.519145244 | R83: 1539808
A84: 86 61 | B84: 3784 | C84: 3513 | D84: 246 | E84: 2 | F84: … | G84: … | H84: 23 | I84: 100 | J84: 92.83826638 | K84: 6.501057082 | L84: 0.05285412262 | M84: … | N84: … | O84: 0.6078224101 | P84: 2.415004171 | R84: 1566871
A85: 87 62 | B85: 3467 | C85: 3227 | D85: 219 | E85: 1 | F85: … | G85: … | H85: 20 | I85: 100 | J85: 93.07758869 | K85: 6.316700317 | L85: 0.02884338044 | M85: … | N85: … | O85: 0.5768676089 | P85: 2.176116696 | R85: 1593205
A86: 88 63 | B86: 3316 | C86: 3037 | D86: 261 | E86: 1 | F86: … | G86: … | H86: 17 | I86: 100 | J86: 91.58624849 | K86: 7.87092883 | L86: 0.03015681544 | M86: … | N86: … | O86: 0.5126658625 | P86: 2.04835375 | R86: 1618861
A87: 89 平成元年 | B87: 3413 | C87: 3167 | D87: 218 | E87: 2 | F87: … | G87: … | H87: 26 | I87: 100 | J87: 92.79226487 | K87: 6.387342514 | L87: 0.0585994726 | M87: … | N87: … | O87: 0.7617931439 | P87: 2.074652224 | R87: 1645095
A88: 90 2 | B88: 3381 | C88: 3115 | D88: 237 | E88: 1 | F88: … | G88: … | H88: 28 | I88: 100 | J88: 92.13250518 | K88: 7.009760426 | L88: 0.02957704821 | M88: … | N88: … | O88: 0.8281573499 | P88: 2.026997861 | R88: 1667984
A89: 91 3 | B89: 3492 | C89: 3187 | D89: 290 | E89: 0 | F89: … | G89: … | H89: 15 | I89: 100 | J89: 91.26575029 | K89: 8.304696449 | L89: 0 | M89: … | N89: … | O89: 0.4295532646 | P89: 2.060191577 | R89: 1694988
A90: 92 4 | B90: 3714 | C90: 3453 | D90: 239 | E90: 2 | F90: … | G90: … | H90: 20 | I90: 100 | J90: 92.97253635 | K90: 6.435110393 | L90: 0.05385029618 | M90: … | N90: … | O90: 0.5385029618 | P90: 2.166244383 | R90: 1714488
A91: 93 5 | B91: 3869 | C91: 3544 | D91: 295 | E91: 0 | F91: … | G91: … | H91: 30 | I91: 100 | J91: 91.59989661 | K91: 7.624709227 | L91: 0 | M91: … | N91: … | O91: 0.7753941587 | P91: 2.238400987 | R91: 1728466
A92: 94 6 | B92: 3906 | C92: 3532 | D92: 349 | E92: 2 | F92: … | G92: … | H92: 23 | I92: 100 | J92: 90.4249872 | K92: 8.934971838 | L92: 0.05120327701 | M92: … | N92: … | O92: 0.5888376856 | P92: 2.244138868 | R92: 1740534
A93: 95 7 | B93: 4137 | C93: 3783 | D93: 327 | E93: 0 | F93: … | G93: … | H93: 27 | I93: 100 | J93: 91.44307469 | K93: 7.904278463 | L93: 0 | M93: … | N93: … | O93: 0.6526468455 | P93: 2.36128924 | R93: 1752009
A94: 96 8 | B94: 4161 | C94: 3809 | D94: 326 | E94: 2 | F94: … | G94: … | H94: 24 | I94: 100 | J94: 91.54049507 | K94: 7.834655131 | L94: 0.0480653689 | M94: … | N94: … | O94: 0.5767844268 | P94: 2.344833027 | R94: 1774540
A95: 97 9 | B95: 4495 | C95: 4104 | D95: 350 | E95: 3 | F95: … | G95: … | H95: 38 | I95: 100 | J95: 91.30144605 | K95: 7.786429366 | L95: 0.06674082314 | M95: … | N95: … | O95: 0.8453837597 | P95: 2.509461423 | R95: 1791221
A96: 98 10 | B96: 4911 | C96: 4517 | D96: 355 | E96: 3 | F96: … | G96: … | H96: 36 | I96: 100 | J96: 91.97719405 | K96: 7.228670332 | L96: 0.06108735492 | M96: … | N96: … | O96: 0.733048259 | P96: 2.722969084 | R96: 1803546
A97: 99 11 | B97: 4915 | C97: 4501 | D97: 370 | E97: 2 | F97: … | G97: … | H97: 42 | I97: 100 | J97: 91.5768057 | K97: 7.527975585 | L97: 0.04069175992 | M97: … | N97: … | O97: 0.8545269583 | P97: 2.712428995 | R97: 1812029
A98: 2000 12 | B98: 5067 | C98: 4633 | D98: 396 | E98: 1 | F98: … | G98: … | H98: 37 | I98: 100 | J98: 91.43477403 | K98: 7.815275311 | L98: 0.01973554371 | M98: … | N98: … | O98: 0.7302151174 | P98: 2.789158447 | R98: 1816677
A99: 01 13 | B99: 5482 | C99: 5079 | D99: 366 | E99: 2 | F99: … | G99: … | H99: 35 | I99: 100 | J99: 92.64866837 | K99: 6.676395476 | L99: 0.03648303539 | M99: … | N99: … | O99: 0.6384531193 | P99: 2.989859457 | R99: 1834684
A100: 02 14 | B100: 5269 | C100: 4839 | D100: 392 | E100: 0 | F100: … | G100: … | H100: 38 | I100: 100 | J100: 91.83905864 | K100: 7.439741887 | L100: 0 | M100: … | N100: … | O100: 0.7211994686 | P100: 2.854225407 | R100: 1848276
A101: 03 15 | B101: 5265 | C101: 4832 | D101: 377 | E101: 2 | F101: … | G101: … | H101: 54 | I101: 100 | J101: 91.77587844 | K101: 7.160493827 | L101: 0.03798670465 | M101: … | N101: … | O101: 1.025641026 | P101: 2.832114511 | R101: 1862361
A102: 04 16 | B102: 5140 | C102: 4634 | D102: 424 | E102: 2 | F102: 33 | G102: 0 | H102: 47 | I102: 100 | J102: 90.15564202 | K102: 8.249027237 | L102: 0.03891050584 | M102: 0.6420233463 | N102: 0 | O102: 0.9143968872 | P102: 2.744695769 | R102: 1872703
A103: 05 17 | B103: 4791 | C103: 4238 | D103: 444 | E103: 0 | F103: 45 | G103: 0 | H103: 64 | I103: 100 | J103: 88.45752453 | K103: 9.267376331 | L103: 0 | M103: 0.9392611146 | N103: 0 | O103: 1.33583803 | P103: 2.56 | R103: 1880863
A104: 06 18 | B104: 4698 | C104: 4248 | D104: 362 | E104: 1 | F104: 40 | G104: 0 | H104: 47 | I104: 100 | J104: 90.42145594 | K104: 7.705406556 | L104: 0.02128565347 | M104: 0.8514261388 | O104: 1 | P104: =B104/R104*1000 -> 2.486424693 | R104: 1889460
A105: 07 19 | B105: 4638 | C105: 4079 | D105: 448 | E105: 4 | F105: 39 | G105: 67 | H105: 1 | I105: 100 | J105: 87.94739112 | K105: 9.659335921 | L105: 0.08624407072 | M105: 0.8408796895 | N105: 1.444588185 | O105: 0.02156101768 | P105: =B105/R105*1000 -> 2.446330267 | R105: 1895901
A106: 08 20 | B106: 4596 | C106: 4093 | D106: 396 | E106: 1 | F106: 42 | G106: 0 | H106: 64 | I106: 100 | J106: 89.05570061 | K106: 8.61618799 | L106: 0.02175805048 | M106: 0.9138381201 | N106: 0 | O106: 1.392515231 | P106: =B106/R106*1000 -> 2.417910212 | R106: 1900815
A107: 09 21 | B107: 4595 | C107: 4049 | D107: 433 | E107: 0 | F107: 80 | G107: 1 | H107: 32 | I107: 100 | J107: 88.11751904 | K107: 9.423286181 | L107: 0 | M107: 1.741022851 | N107: 0.02176278564 | O107: 0.6964091404 | P107: =B107/R107*1000 -> 2.40903343 | R107: 1907404
A108: 10 22 | B108: 4727 | C108: 4151 | D108: 460 | E108: 5 | F108: 71 | G108: 1 | H108: 39 | I108: 100 | J108: 87.81468162 | K108: 9.731330654 | L108: 0.1057753332 | M108: 1.502009731 | N108: 0.02115506664 | O108: 0.8250475989 | P108: 2.479186269 | R108: 1906674
A109: 11 23 | B109: 4643 | C109: 4048 | D109: 474 | E109: 6 | F109: 61 | G109: 3 | H109: 51 | I109: 100 | J109: 87.18500969 | K109: 10.20891665 | L109: 0.129226793 | M109: 1.313805729 | N109: 0.06461339651 | O109: 1.098427741 | P109: 2.415794499 | R109: 1921935
A110: 12 24 | B110: 4555 | C110: 3956 | D110: 461 | E110: 1 | F110: 81 | G110: 1 | H110: 55 | I110: 100 | J110: 86.84961581 | K110: 10.12074643 | L110: 0.02195389682 | M110: 1.778265642 | N110: 0.02195389682 | O110: 1.207464325 | P110: 2.361601347 | R110: 1928776
A111: 13 25 | B111: 4413 | C111: 3837 | D111: 408 | E111: 3 | F111: 103 | G111: 3 | H111: 59 | I111: 100 | J111: 86.94765466 | K111: 9.245411285 | L111: 0.06798096533 | M111: 2.334013143 | N111: 0.06798096533 | O111: 1.336958985 | P111: 2.279219642 | R111: 1936189
A112: 14 26 | B112: 4182 | C112: 3641 | D112: 408 | E112: 4 | F112: 78 | G112: 2 | H112: 49 | I112: 100 | J112: 87.06360593 | K112: 9.756097561 | L112: 0.0956480153 | M112: 1.865136298 | N112: 0.04782400765 | O112: 1.171688187 | P112: 2.152731735 | R112: 1942648
A113: 15 27 | B113: 4492 | C113: 3895 | D113: 452 | E113: 11 | F113: 87 | G113: 1 | H113: 46 | I113: 100 | J113: 86.70970614 | K113: 10.06233304 | L113: 0.2448797863 | M113: 1.936776492 | N113: 0.02226179875 | O113: 1.024042743 | P113: 2) 2.31 | R113: 1943527
A114: 16 28 | B114: =SUM(C114:H114) -> 4096 | C114: ='4 同居期間別，離婚の種類別離婚件数及び百分率'!$B$7 -> 3541 | D114: ='4 同居期間別，離婚の種類別離婚件数及び百分率'!$B$8 -> 428 | E114: ='4 同居期間別，離婚の種類別離婚件数及び百分率'!$B$9 -> 12 | F114: ='4 同居期間別，離婚の種類別離婚件数及び百分率'!$B$33 -> 74 | G114: ='4 同居期間別，離婚の種類別離婚件数及び百分率'!$B$34 -> 0 | H114: ='4 同居期間別，離婚の種類別離婚件数及び百分率'!$B$35 -> 41 | I114: 100 | J114: =C114/$B114*100 -> 86.45019531 | K114: 10.44921875 | L114: 0.29296875 | M114: 1.806640625 | N114: 0 | O114: 1.000976562 | P114: =B114/R114*1000 -> 2.091497928 | R114: =[1]人口!$B$42 -> 1958405
A115: 1) 本市の集計による。
A116: 2) 率算出に用いた人口は「平成27年国勢調査 年齢・国籍不詳をあん分した人口(参考表)」(総務省統計局)における日本
A117: 人人口による。

Sheet 2 届出月別，区別離婚件数・百分率
A1: 2 届出月別にみた区別離婚件数及び百分率
N2: 平成28年
A3: 区 | B3: 総数 | C3: 1 月 | D3: 2 月 | E3: 3 月 | F3: 4 月 | G3: 5 月 | H3: 6 月 | I3: 7 月 | J3: 8 月 | K3: 9 月 | L3: 10月 | M3: 11月 | N3: 12月
B4: 離婚件数
A5: 総数 | B5: =SUM(B6:B15) -> 4096 | C5: =SUM(C6:C15) -> 354 | D5: =SUM(D6:D15) -> 352 | E5: 443 | F5: 338 | G5: 343 | H5: 330 | I5: 319 | J5: 353 | K5: 327 | L5: 328 | M5: 319 | N5: 290
A6: 中央 | B6: =SUM(C6:N6) -> 572 | C6: 58 | D6: 35 | E6: 55 | F6: 49 | G6: 47 | H6: 42 | I6: 46 | J6: 45 | K6: 47 | L6: 54 | M6: 46 | N6: 48
A7: 北 | B7: =SUM(C7:N7) -> 571 | C7: 61 | D7: 49 | E7: 60 | F7: 49 | G7: 48 | H7: 38 | I7: 49 | J7: 39 | K7: 47 | L7: 42 | M7: 49 | N7: 40
A8: 東 | B8: 608 | C8: 46 | D8: 60 | E8: 61 | F8: 45 | G8: 54 | H8: 56 | I8: 52 | J8: 54 | K8: 45 | L8: 50 | M8: 49 | N8: 36
A9: 白石 | B9: 521 | C9: 37 | D9: 53 | E9: 57 | F9: 31 | G9: 50 | H9: 45 | I9: 38 | J9: 52 | K9: 43 | L9: 42 | M9: 37 | N9: 36
A10: 厚別 | B10: 224 | C10: 24 | D10: 25 | E10: 23 | F10: 17 | G10: 15 | H10: 10 | I10: 21 | J10: 15 | K10: 18 | L10: 26 | M10: 18 | N10: 12
A11: 豊平 | B11: 491 | C11: 46 | D11: 46 | E11: 54 | F11: 49 | G11: 43 | H11: 35 | I11: 32 | J11: 41 | K11: 35 | L11: 35 | M11: 40 | N11: 35
A12: 清田 | B12: 209 | C12: 16 | D12: 22 | E12: 26 | F12: 21 | G12: 14 | H12: 15 | I12: 16 | J12: 18 | K12: 19 | L12: 16 | M12: 12 | N12: 14
A13: 南 | B13: 264 | C13: 32 | D13: 14 | E13: 33 | F13: 27 | G13: 21 | H13: 22 | I13: 16 | J13: 23 | K13: 23 | L13: 20 | M13: 12 | N13: 21
A14: 西 | B14: 405 | C14: 21 | D14: 29 | E14: 48 | F14: 29 | G14: 31 | H14: 41 | I14: 33 | J14: 48 | K14: 33 | L14: 27 | M14: 39 | N14: 26
A15: 手稲 | B15: 231 | C15: 13 | D15: 19 | E15: 26 | F15: 21 | G15: 20 | H15: 26 | I15: 16 | J15: 18 | K15: 17 | L15: 16 | M15: 17 | N15: 22
B16: 百分率
A17: 総数 | B17: =SUM(C17:N17) -> 100 | C17: =C5/$B5*100 -> 8.642578125 | D17: =D5/$B5*100 -> 8.59375 | E17: 10.81542969 | F17: 8.251953125 | G17: 8.374023438 | H17: 8.056640625 | I17: 7.788085938 | J17: 8.618164062 | K17: 7.983398438 | L17: 8.0078125 | M17: 7.788085938 | N17: 7.080078125
A18: 中央 | B18: =SUM(C18:N18) -> 100 | C18: =C6/$B6*100 -> 10.13986014 | D18: 6.118881119 | E18: 9.615384615 | F18: 8.566433566 | G18: 8.216783217 | H18: 7.342657343 | I18: 8.041958042 | J18: 7.867132867 | K18: 8.216783217 | L18: 9.440559441 | M18: 8.041958042 | N18: 8.391608392
A19: 北 | B19: 100 | C19: 10.68301226 | D19: 8.581436077 | E19: 10.50788091 | F19: 8.581436077 | G19: 8.406304729 | H19: 6.654991243 | I19: 8.581436077 | J19: 6.830122592 | K19: 8.23117338 | L19: 7.355516637 | M19: 8.581436077 | N19: 7.00525394
A20: 東 | B20: 100 | C20: 7.565789474 | D20: 9.868421053 | E20: 10.03289474 | F20: 7.401315789 | G20: 8.881578947 | H20: 9.210526316 | I20: 8.552631579 | J20: 8.881578947 | K20: 7.401315789 | L20: 8.223684211 | M20: 8.059210526 | N20: 5.921052632
A21: 白石 | B21: 100 | C21: 7.101727447 | D21: 10.17274472 | E21: 10.94049904 | F21: 5.950095969 | G21: 9.596928983 | H21: 8.637236084 | I21: 7.293666027 | J21: 9.980806142 | K21: 8.253358925 | L21: 8.061420345 | M21: 7.101727447 | N21: 6.909788868
A22: 厚別 | B22: 100 | C22: 10.71428571 | D22: 11.16071429 | E22: 10.26785714 | F22: 7.589285714 | G22: 6.696428571 | H22: 4.464285714 | I22: 9.375 | J22: 6.696428571 | K22: 8.035714286 | L22: 11.60714286 | M22: 8.035714286 | N22: 5.357142857
A23: 豊平 | B23: 100 | C23: 9.368635438 | D23: 9.368635438 | E23: 10.99796334 | F23: 9.979633401 | G23: 8.757637475 | H23: 7.128309572 | I23: 6.517311609 | J23: 8.350305499 | K23: 7.128309572 | L23: 7.128309572 | M23: 8.146639511 | N23: 7.128309572
A24: 清田 | B24: 100 | C24: 7.655502392 | D24: 10.52631579 | E24: 12.44019139 | F24: 10.04784689 | G24: 6.698564593 | H24: 7.177033493 | I24: 7.655502392 | J24: 8.612440191 | K24: 9.090909091 | L24: 7.655502392 | M24: 5.741626794 | N24: 6.698564593
A25: 南 | B25: 100 | C25: 12.12121212 | D25: 5.303030303 | E25: 12.5 | F25: 10.22727273 | G25: 7.954545455 | H25: 8.333333333 | I25: 6.060606061 | J25: 8.712121212 | K25: 8.712121212 | L25: 7.575757576 | M25: 4.545454545 | N25: 7.954545455
A26: 西 | B26: 100 | C26: 5.185185185 | D26: 7.160493827 | E26: 11.85185185 | F26: 7.160493827 | G26: 7.654320988 | H26: 10.12345679 | I26: 8.148148148 | J26: 11.85185185 | K26: 8.148148148 | L26: 6.666666667 | M26: 9.62962963 | N26: 6.419753086
A27: 手稲 | B27: 100 | C27: 5.627705628 | D27: 8.225108225 | E27: 11.25541126 | F27: 9.090909091 | G27: 8.658008658 | H27: 11.25541126 | I27: 6.926406926 | J27: 7.792207792 | K27: 7.359307359 | L27: 6.926406926 | M27: 7.359307359 | N27: 9.523809524

Sheet 3 同居期間別，年次別離婚件数及び百分率
A1: 3 同居期間別にみた年次別離婚件数及び百分率
A3: 年次 | B3: 同居期間
B4: 総 数 | C4: １年未満 | D4: 1～2年 | E4: 2～3年 | F4: 3～4年 | G4: 4～5年 | H4: 5年未満 | I4: 5～10年 | J4: 10～15年 | K4: 15～20年 | L4: 20年～ | M4: 不 詳
B5: 離婚件数
A6: 85 60 | B6: =SUM(H6:M6) -> 3879 | C6: 264 | D6: 324 | E6: 313 | F6: 283 | G6: 228 | H6: =SUM(C6:G6) -> 1412 | I6: 870 | J6: 700 | K6: 484 | L6: 410 | M6: 3
A7: 1986 昭和61年 | B7: =SUM(H7:M7) -> 3784 | C7: 268 | D7: 320 | E7: 306 | F7: 263 | G7: 208 | H7: =SUM(C7:G7) -> 1365 | I7: 813 | J7: 689 | K7: 448 | L7: 450 | M7: 19
A8: 1987 昭和62年 | B8: =SUM(H8:M8) -> 3467 | C8: 233 | D8: 294 | E8: 287 | F8: 258 | G8: 242 | H8: =SUM(C8:G8) -> 1314 | I8: 729 | J8: 571 | K8: 391 | L8: 430 | M8: 32
A9: 1988 昭和63年 | B9: 3316 | C9: 255 | D9: 296 | E9: 276 | F9: 256 | G9: 206 | H9: 1289 | I9: 719 | J9: 511 | K9: 384 | L9: 397 | M9: 16
A10: 89 平成元年 | B10: 3413 | C10: 257 | D10: 313 | E10: 294 | F10: 261 | G10: 225 | H10: 1350 | I10: 725 | J10: 496 | K10: 402 | L10: 415 | M10: 25
A11: 90 2 | B11: 3381 | C11: 230 | D11: 358 | E11: 291 | F11: 238 | G11: 224 | H11: 1341 | I11: 729 | J11: 464 | K11: 398 | L11: 416 | M11: 33
A12: 91 3 | B12: 3492 | C12: 238 | D12: 330 | E12: 313 | F12: 273 | G12: 210 | H12: 1364 | I12: 751 | J12: 490 | K12: 388 | L12: 433 | M12: 66
A13: 92 4 | B13: 3714 | C13: 288 | D13: 347 | E13: 329 | F13: 301 | G13: 269 | H13: 1534 | I13: 799 | J13: 421 | K13: 388 | L13: 507 | M13: 65
A14: 1993 平成5年 | B14: 3869 | C14: 273 | D14: 347 | E14: 352 | F14: 301 | G14: 291 | H14: 1564 | I14: 828 | J14: 493 | K14: 384 | L14: 534 | M14: 66
A15: 94 6 | B15: 3906 | C15: 308 | D15: 367 | E15: 347 | F15: 322 | G15: 257 | H15: 1601 | I15: 888 | J15: 498 | K15: 361 | L15: 533 | M15: 25
A16: 95 7 | B16: 4137 | C16: 318 | D16: 402 | E16: 391 | F16: 336 | G16: 295 | H16: 1742 | I16: 869 | J16: 480 | K16: 358 | L16: 628 | M16: 60
A17: 96 8 | B17: 4161 | C17: 288 | D17: 427 | E17: 371 | F17: 329 | G17: 274 | H17: 1689 | I17: 865 | J17: 535 | K17: 375 | L17: 567 | M17: 130
A18: 97 9 | B18: 4495 | C18: 370 | D18: 440 | E18: 434 | F18: 359 | G18: 294 | H18: 1897 | I18: 927 | J18: 502 | K18: 394 | L18: 587 | M18: 188
A19: 1998 平成10年 | B19: 4911 | C19: 332 | D19: 442 | E19: 425 | F19: 393 | G19: 322 | H19: 1914 | I19: 1061 | J19: 532 | K19: 464 | L19: 715 | M19: 225
A20: 99 11 | B20: 4915 | C20: 315 | D20: 401 | E20: 416 | F20: 356 | G20: 320 | H20: 1808 | I20: 1093 | J20: 569 | K20: 428 | L20: 759 | M20: 258
A21: 2000 12 | B21: 5067 | C21: 303 | D21: 377 | E21: 426 | F21: 394 | G21: 320 | H21: 1820 | I21: 1065 | J21: 648 | K21: 413 | L21: 745 | M21: 376
A22: 01 13 | B22: 5482 | C22: 341 | D22: 430 | E22: 403 | F22: 419 | G22: 357 | H22: 1950 | I22: 1220 | J22: 689 | K22: 477 | L22: 723 | M22: 423
A23: 02 14 | B23: 5269 | C23: 329 | D23: 408 | E23: 386 | F23: 360 | G23: 333 | H23: 1816 | I23: 1161 | J23: 699 | K23: 489 | L23: 794 | M23: 310
A24: 03 15 | B24: 5265 | C24: 301 | D24: 426 | E24: 436 | F24: 384 | G24: 339 | H24: 1886 | I24: 1120 | J24: 697 | K24: 464 | L24: 820 | M24: 278
A25: 04 16 | B25: 5140 | C25: 308 | D25: 402 | E25: 408 | F25: 340 | G25: 325 | H25: 1783 | I25: 1179 | J25: 676 | K25: 454 | L25: 793 | M25: 255
A26: 05 17 | B26: 4791 | C26: 253 | D26: 360 | E26: 388 | F26: 339 | G26: 277 | H26: 1617 | I26: 1089 | J26: 651 | K26: 468 | L26: 754 | M26: 212
A27: 06 18 | B27: 4698 | C27: 313 | D27: 339 | E27: 369 | F27: 326 | G27: 311 | H27: 1658 | I27: 1040 | J27: 630 | K27: 401 | L27: 633 | M27: 336
A28: 07 19 | B28: 4638 | C28: 273 | D28: 305 | E28: 322 | F28: 300 | G28: 264 | H28: 1464 | I28: 976 | J28: 621 | K28: 447 | L28: 756 | M28: 374
A29: 08 20 | B29: 4596 | C29: 243 | D29: 329 | E29: 319 | F29: 274 | G29: 246 | H29: 1411 | I29: 967 | J29: 549 | K29: 456 | L29: 736 | M29: 477
A30: 09 21 | B30: 4595 | C30: 282 | D30: 339 | E30: 300 | F30: 266 | G30: 251 | H30: 1438 | I30: 868 | J30: 616 | K30: 436 | L30: 744 | M30: 493
A31: 10 22 | B31: 4727 | C31: 244 | D31: 329 | E31: 350 | F31: 327 | G31: 262 | H31: 1512 | I31: 951 | J31: 632 | K31: 467 | L31: 737 | M31: 428
A32: 11 23 | B32: 4643 | C32: 235 | D32: 303 | E32: 326 | F32: 270 | G32: 242 | H32: 1376 | I32: 925 | J32: 631 | K32: 490 | L32: 796 | M32: 425
A33: 12 24 | B33: 4555 | C33: 251 | D33: 314 | E33: 288 | F33: 306 | G33: 247 | H33: 1406 | I33: 855 | J33: 597 | K33: 479 | L33: 754 | M33: 464
A34: 13 25 | B34: 4413 | C34: 229 | D34: 279 | E34: 300 | F34: 275 | G34: 223 | H34: 1306 | I34: 835 | J34: 597 | K34: 404 | L34: 697 | M34: 574
A35: 14 26 | B35: 4182 | C35: 204 | D35: 280 | E35: 275 | F35: 219 | G35: 227 | H35: 1205 | I35: 779 | J35: 520 | K35: 362 | L35: 691 | M35: 625
A36: 15 27 | B36: 4492 | C36: 272 | D36: 298 | E36: 301 | F36: 238 | G36: 217 | H36: 1326 | I36: 858 | J36: 550 | K36: 406 | L36: 717 | M36: 635
A37: 16 28 | B37: =SUM(H37:M37) -> 4096 | C37: =SUM('4 同居期間別，離婚の種類別離婚件数及び百分率'!$C$6:C$6) -> 235 | D37: =SUM('4 同居期間別，離婚の種類別離婚件数及び百分率'!D$6:D$6) -> 276 | E37: =SUM('4 同居期間別，離婚の種類別離婚件数及び百分率'!E$6:E$6) -> 277 | F37: =SUM('4 同居期間別，離婚の種類別離婚件数及び百分率'!F$6:F$6) -> 231 | G37: =SUM('4 同居期間別，離婚の種類別離婚件数及び百分率'!G$6:G$6) -> 201 | H37: =SUM(C37:G37) -> 1220 | I37: =SUM('4 同居期間別，離婚の種類別離婚件数及び百分率'!I$6:I$6) -> 729 | J37: =SUM('4 同居期間別，離婚の種類別離婚件数及び百分率'!J$6:J$6) -> 515 | K37: =SUM('4 同居期間別，離婚の種類別離婚件数及び百分率'!K$6:K$6) -> 369 | L37: =SUM('4 同居期間別，離婚の種類別離婚件数及び百分率'!L$6:O$6) -> 658 | M37: =SUM('4 同居期間別，離婚の種類別離婚件数及び百分率'!P$6:P$6) -> 605
B38: 百分率
A39: 85 60 | B39: =SUM(H39:M39) -> 100 | C39: =C6/$B6*100 -> 6.805877804 | D39: 8.352668213 | E39: 8.069089972 | F39: 7.295694767 | G39: 5.877803558 | H39: 36.40113431 | I39: 22.42846094 | J39: 18.04588812 | K39: 12.47744264 | L39: 10.56973447 | M39: 0.07733952049
A40: 1986 昭和61年 | B40: =SUM(H40:M40) -> 100 | C40: =C7/$B7*100 -> 7.082452431 | D40: 8.456659619 | E40: 8.086680761 | F40: 6.950317125 | G40: 5.496828753 | H40: 36.07293869 | I40: 21.48520085 | J40: 18.20824524 | K40: 11.83932347 | L40: 11.89217759 | M40: 0.5021141649
A41: 1987 昭和62年 | B41: =SUM(H41:M41) -> 100 | C41: =C8/$B8*100 -> 6.720507643 | D41: 8.479953851 | E41: 8.278050187 | F41: 7.441592155 | G41: 6.980098067 | H41: 37.9002019 | I41: 21.02682434 | J41: 16.46957023 | K41: 11.27776175 | L41: 12.40265359 | M41: 0.9229881742
A42: 1988 昭和63年 | B42: 100 | C42: 7.689987937 | D42: 8.92641737 | E42: 8.323281062 | F42: 7.720144753 | G42: 6.212303981 | H42: 38.8721351 | I42: 21.6827503 | J42: 15.41013269 | K42: 11.58021713 | L42: 11.97225573 | M42: 0.482509047
A43: 89 平成元年 | B43: 100 | C43: 7.53003223 | D43: 9.170817463 | E43: 8.614122473 | F43: 7.647231175 | G43: 6.592440668 | H43: 39.55464401 | I43: 21.24230882 | J43: 14.53266921 | K43: 11.77849399 | L43: 12.15939057 | M43: 0.7324934076
A44: 90 2 | B44: 100 | C44: 6.802721088 | D44: 10.58858326 | E44: 8.606921029 | F44: 7.039337474 | G44: 6.625258799 | H44: 39.66282165 | I44: 21.56166815 | J44: 13.72375037 | K44: 11.77166519 | L44: 12.30405206 | M44: 0.9760425909
A45: 91 3 | B45: 100 | C45: 6.815578465 | D45: 9.450171821 | E45: 8.963344788 | F45: 7.817869416 | G45: 6.013745704 | H45: 39.06071019 | I45: 21.50630011 | J45: 14.03207331 | K45: 11.11111111 | L45: 12.3997709 | M45: 1.890034364
A46: 92 4 | B46: 100 | C46: 7.754442649 | D46: 9.343026387 | E46: 8.858373721 | F46: 8.104469575 | G46: 7.242864836 | H46: 41.30317717 | I46: 21.51319332 | J46: 11.33548735 | K46: 10.44695746 | L46: 13.65105008 | M46: 1.750134626
A47: 1993 平成5年 | B47: 100 | C47: 7.056086844 | D47: 8.968725769 | E47: 9.097958129 | F47: 7.779788059 | G47: 7.521323339 | H47: 40.42388214 | I47: 21.40087878 | J47: 12.74231067 | K47: 9.925045231 | L47: 13.80201602 | M47: 1.705867149
A48: 94 6 | B48: 100 | C48: 7.885304659 | D48: 9.395801331 | E48: 8.883768561 | F48: 8.243727599 | G48: 6.579621096 | H48: 40.98822325 | I48: 22.73425499 | J48: 12.74961598 | K48: 9.2421915 | L48: 13.64567332 | M48: 0.6400409626
A49: 95 7 | B49: 100 | C49: 7.686729514 | D49: 9.717186367 | E49: 9.451293208 | F49: 8.121827411 | G49: 7.13077109 | H49: 42.10780759 | I49: 21.00555958 | J49: 11.60261059 | K49: 8.65361373 | L49: 15.18008219 | M49: 1.450326323
A50: 96 8 | B50: 100 | C50: 6.921413122 | D50: 10.26195626 | E50: 8.916125931 | F50: 7.906753184 | G50: 6.58495554 | H50: 40.59120404 | I50: 20.78827205 | J50: 12.85748618 | K50: 9.012256669 | L50: 13.62653208 | M50: 3.124248979
A51: 97 9 | B51: 100 | C51: 8.231368187 | D51: 9.78865406 | E51: 9.655172414 | F51: 7.986651835 | G51: 6.540600667 | H51: 42.20244716 | I51: 20.62291435 | J51: 11.1679644 | K51: 8.765294772 | L51: 13.05895439 | M51: 4.182424917
A52: 1998 平成10年 | B52: 100 | C52: 6.760333944 | D52: 9.000203625 | E52: 8.654041947 | F52: 8.002443494 | G52: 6.556709428 | H52: 38.97373244 | I52: 21.60456119 | J52: 10.83282427 | K52: 9.448177561 | L52: 14.55915292 | M52: 4.581551619
A53: 99 11 | B53: 100 | C53: 6.408952187 | D53: 8.158697864 | E53: 8.463886063 | F53: 7.243133266 | G53: 6.510681587 | H53: 36.78535097 | I53: 22.2380468 | J53: 11.5768057 | K53: 8.708036623 | L53: 15.44252289 | M53: 5.24923703
A54: 2000 12 | B54: 100 | C54: 5.979869745 | D54: 7.44029998 | E54: 8.407341622 | F54: 7.775804223 | G54: 6.315373989 | H54: 35.91868956 | I54: 21.01835406 | J54: 12.78863233 | K54: 8.150779554 | L54: 14.70298007 | M54: 7.420564437
A55: 01 13 | B55: 100 | C55: 6.220357534 | D55: 7.843852609 | E55: 7.351331631 | F55: 7.643195914 | G55: 6.512221817 | H55: 35.5709595 | I55: 22.25465159 | J55: 12.56840569 | K55: 8.70120394 | L55: 13.18861729 | M55: 7.716161985
A56: 02 14 | B56: 100 | C56: 6.244069083 | D56: 7.743404821 | E56: 7.325868286 | F56: 6.832416018 | G56: 6.319984817 | H56: 34.46574303 | I56: 22.03454166 | J56: 13.26627444 | K56: 9.280698425 | L56: 15.06927311 | M56: 5.883469349
A57: 03 15 | B57: 100 | C57: 5.71699905 | D57: 8.091168091 | E57: 8.281101614 | F57: 7.293447293 | G57: 6.438746439 | H57: 35.82146249 | I57: 21.27255461 | J57: 13.23836657 | K57: 8.81291548 | L57: 15.57454891 | M57: 5.280151947
A58: 04 16 | B58: 100 | C58: 5.992217899 | D58: 7.821011673 | E58: 7.937743191 | F58: 6.614785992 | G58: 6.322957198 | H58: 34.68871595 | I58: 22.93774319 | J58: 13.15175097 | K58: 8.832684825 | L58: 15.42801556 | M58: 4.961089494
A59: 05 17 | B59: 100 | C59: 5.280734711 | D59: 7.514088917 | E59: 8.098518055 | F59: 7.075767063 | G59: 5.781673972 | H59: 33.75078272 | I59: 22.73011897 | J59: 13.58797746 | K59: 9.768315592 | L59: 15.73784179 | M59: 4.424963473
A60: 06 18 | B60: 100 | C60: 6.662409536 | D60: 7.215836526 | E60: 7.85440613 | F60: 6.939123031 | G60: 6.619838229 | H60: 35.29161345 | I60: 22.13707961 | J60: 13.40996169 | K60: 8.535547041 | L60: 13.47381865 | M60: 7.151979566
A61: 07 19 | B61: 100 | C61: 5.886157827 | D61: 6.576110392 | E61: 6.942647693 | F61: 6.468305304 | G61: 5.692108668 | H61: 31.56532988 | I61: 21.04355326 | J61: 13.38939198 | K61: 9.637774903 | L61: 16.30012937 | M61: 8.063820612
A62: 08 20 | B62: 100 | C62: 5.287206266 | D62: 7.158398607 | E62: 6.940818103 | F62: 5.961705831 | G62: 5.352480418 | H62: 30.70060923 | I62: 21.04003481 | J62: 11.94516971 | K62: 9.921671018 | L62: 16.01392515 | M62: 10.37859008
A63: 09 21 | B63: 100 | C63: 6.13710555 | D63: 7.377584331 | E63: 6.528835691 | F63: 5.788900979 | G63: 5.462459195 | H63: 31.29488575 | I63: 18.89009793 | J63: 13.40587595 | K63: 9.488574538 | L63: 16.19151251 | M63: 10.72905332
A64: 10 22 | B64: 100 | C64: 5.16183626 | D64: 6.960016924 | E64: 7.404273323 | F64: 6.917706791 | G64: 5.542627459 | H64: 31.98646076 | I64: 20.11846837 | J64: 13.37000212 | K64: 9.87941612 | L64: 15.59128411 | M64: 9.054368521
A65: 11 23 | B65: 100 | C65: 5.061382727 | D65: 6.525953048 | E65: 7.021322421 | F65: 5.815205686 | G65: 5.212147319 | H65: 29.6360112 | I65: 19.92246392 | J65: 13.59035107 | K65: 10.55352143 | L65: 17.14408787 | M65: 9.153564506
A66: 12 24 | B66: 100 | C66: 5.510428101 | D66: 6.8935236 | E66: 6.322722283 | F66: 6.717892426 | G66: 5.422612514 | H66: 30.86717892 | I66: 18.77058178 | J66: 13.1064764 | K66: 10.51591658 | L66: 16.5532382 | M66: 10.18660812
A67: 13 25 | B67: 100 | C67: 5.189213687 | D67: 6.322229776 | E67: 6.798096533 | F67: 6.231588489 | G67: 5.053251756 | H67: 29.59438024 | I67: 18.92136868 | J67: 13.5282121 | K67: 9.154769998 | L67: 15.79424428 | M67: 13.0070247
A68: 14 26 | B68: 100 | C68: 4.87804878 | D68: 6.695361071 | E68: 6.575801052 | F68: 5.236728838 | G68: 5.428024868 | H68: 28.81396461 | I68: 18.62745098 | J68: 12.43424199 | K68: 8.656145385 | L68: 16.52319464 | M68: 14.94500239
A69: 15 27 | B69: 100 | C69: 6.055209261 | D69: 6.634016028 | E69: 6.700801425 | F69: 5.298308103 | G69: 4.830810329 | H69: 29.51914515 | I69: 19.10062333 | J69: 12.24398931 | K69: 9.038290294 | L69: 15.96170971 | M69: 14.13624221
A70: 16 28 | B70: =SUM(H70:M70) -> 100 | C70: =C37/$B37*100 -> 5.737304688 | D70: 6.73828125 | E70: 6.762695312 | F70: 5.639648438 | G70: 4.907226562 | H70: 29.78515625 | I70: 17.79785156 | J70: 12.57324219 | K70: 9.008789062 | L70: 16.06445312 | M70: 14.77050781

Sheet 4 同居期間別，離婚の種類別離婚件数及び百分率
A1: 4 同居期間別にみた離婚の種類別離婚件数及び百分率
P2: ='2 届出月別，区別離婚件数・百分率'!$N$2 -> 平成28年
A3: 離婚の 種 類 | B3: 同居期間
B4: 総 数 | C4: １年未満 | D4: 1～2年 | E4: 2～3年 | F4: 3～4年 | G4: 4～5年 | H4: 5年未満 | I4: 5～10年 | J4: 10～15年 | K4: 15～20年 | L4: 20～25年 | M4: 25～30年 | N4: 30～35年 | O4: 35年～ | P4: 不 詳
B5: 離婚件数
A6: 総数 | B6: =SUM(H6:P6) -> 4096 | C6: =SUM(C7:C12) -> 235 | D6: =SUM(D7:D12) -> 276 | E6: =SUM(E7:E12) -> 277 | F6: 231 | G6: 201 | H6: =SUM(C6:G6) -> 1220 | I6: 729 | J6: 515 | K6: 369 | L6: 292 | M6: 158 | N6: 98 | O6: 110 | P6: 605
A7: 協議 | B7: =SUM(H7:P7) -> 3541 | C7: 208 | D7: 244 | E7: 242 | F7: 208 | G7: 180 | H7: =SUM(C7:G7) -> 1082 | I7: 651 | J7: 457 | K7: 320 | L7: 251 | M7: 133 | N7: 86 | O7: 96 | P7: 465
A8: 調停 | B8: 428 | C8: 24 | D8: 30 | E8: 28 | F8: 20 | G8: 15 | H8: 117 | I8: 60 | J8: 45 | K8: 37 | L8: 31 | M8: 18 | N8: 9 | O8: 9 | P8: 102
A9: 審判 | B9: 12 | C9: 1 | D9: 1 | E9: 0 | F9: 0 | G9: 0 | H9: 2 | I9: 2 | J9: 1 | K9: 1 | L9: 1 | M9: 1 | N9: 0 | O9: 0 | P9: 4
A10: 和解 | B10: 41 | C10: 0 | D10: 1 | E10: 2 | F10: 1 | G10: 2 | H10: 6 | I10: 9 | J10: 3 | K10: 3 | L10: 1 | M10: 5 | N10: 0 | O10: 1 | P10: 13 | R10: 判決
A11: 請求の認諾 | B11: 74 | C11: 2 | D11: 0 | E11: 5 | F11: 2 | G11: 4 | H11: 13 | I11: 7 | J11: 9 | K11: 8 | L11: 8 | M11: 1 | N11: 3 | O11: 4 | P11: 21 | R11: 和解
A12: 判決 | B12: 0 | C12: 0 | D12: 0 | E12: 0 | F12: 0 | G12: 0 | H12: 0 | I12: 0 | J12: 0 | K12: 0 | L12: 0 | M12: 0 | N12: 0 | O12: 0 | P12: 0 | R12: 請求の認諾
B13: 百分率
A14: 総数 | B14: =SUM(H14:P14) -> 100 | C14: =C6/$B6*100 -> 5.737304688 | D14: 6.73828125 | E14: 6.762695312 | F14: 5.639648438 | G14: 4.907226562 | H14: =H6/$B6*100 -> 29.78515625 | I14: 17.79785156 | J14: 12.57324219 | K14: 9.008789062 | L14: 7.12890625 | M14: 3.857421875 | N14: 2.392578125 | O14: 2.685546875 | P14: 14.77050781
A15: 協議 | B15: 100 | C15: =C7/$B7*100 -> 5.874046879 | D15: 6.890708839 | E15: 6.834227619 | F15: 5.874046879 | G15: 5.083309799 | H15: 30.55634002 | I15: 18.38463711 | J15: 12.90595877 | K15: 9.036995199 | L15: 7.088393109 | M15: 3.75600113 | N15: 2.42869246 | O15: 2.71109856 | P15: 13.13188365
A16: 調停 | B16: 100 | C16: =C8/$B8*100 -> 5.607476636 | D16: 7.009345794 | E16: 6.542056075 | F16: 4.672897196 | G16: 3.504672897 | H16: 27.3364486 | I16: 14.01869159 | J16: 10.51401869 | K16: 8.644859813 | L16: 7.242990654 | M16: 4.205607477 | N16: 2.102803738 | O16: 2.102803738 | P16: 23.8317757
A17: 審判 | B17: 100 | C17: =IF(C9=0,0,C9/$B9*100) -> 8.333333333 | D17: =IF(D9=0,0,D9/$B9*100) -> 8.333333333 | E17: 0 | F17: 0 | G17: 0 | H17: 16.66666667 | I17: 16.66666667 | J17: 8.333333333 | K17: 8.333333333 | L17: 8.333333333 | M17: 8.333333333 | N17: 0 | O17: 0 | P17: 33.33333333
A18: 和解 | B18: 100 | C18: =IF(C10=0,0,C10/$B10*100) -> 0 | D18: 2.43902439 | E18: 4.87804878 | F18: 2.43902439 | G18: 4.87804878 | H18: =IF(H10=0,0,H10/$B10*100) -> 14.63414634 | I18: 21.95121951 | J18: 7.317073171 | K18: 7.317073171 | L18: 2.43902439 | M18: 12.19512195 | N18: 0 | O18: 2.43902439 | P18: 31.70731707 | R18: 判決
A19: 請求の認諾 | B19: 100 | C19: 2.702702703 | D19: 0 | E19: 6.756756757 | F19: 2.702702703 | G19: 5.405405405 | H19: =IF(H11=0,0,H11/$B11*100) -> 17.56756757 | I19: 9.459459459 | J19: 12.16216216 | K19: 10.81081081 | L19: 10.81081081 | M19: 1.351351351 | N19: 4.054054054 | O19: 5.405405405 | P19: 28.37837838 | R19: 和解
A20: 判決 | B20: 0 | C20: 0 | D20: 0 | E20: 0 | F20: 0 | G20: 0 | H20: 0 | I20: 0 | J20: 0 | K20: 0 | L20: 0 | M20: 0 | N20: 0 | O20: 0 | P20: 0 | R20: 請求の認諾
A23: こっちを原稿に↓ 和解、請求の認諾、判決の入替後
A24: 4 同居期間別にみた離婚の種類別離婚件数及び百分率
P25: ='2 届出月別，区別離婚件数・百分率'!$N$2 -> 平成28年
A26: 離婚の 種 類 | B26: 同居期間
B27: 総 数 | C27: １年未満 | D27: 1～2年 | E27: 2～3年 | F27: 3～4年 | G27: 4～5年 | H27: 5年未満 | I27: 5～10年 | J27: 10～15年 | K27: 15～20年 | L27: 20～25年 | M27: 25～30年 | N27: 30～35年 | O27: 35年～ | P27: 不 詳
B28: 離婚件数
A29: 総数 | B29: =SUM(H29:P29) -> 4096 | C29: =SUM(C30:C35) -> 235 | D29: =SUM(D30:D35) -> 276 | E29: =SUM(E30:E35) -> 277 | F29: =SUM(F30:F35) -> 231 | G29: =SUM(G30:G35) -> 201 | H29: =SUM(C29:G29) -> 1220 | I29: =SUM(I30:I35) -> 729 | J29: 515 | K29: 369 | L29: 292 | M29: 158 | N29: 98 | O29: 110 | P29: 605
A30: 協議 | B30: 3541 | C30: =C7 -> 208 | D30: =D7 -> 244 | E30: =E7 -> 242 | F30: =F7 -> 208 | G30: =G7 -> 180 | H30: 1082 | I30: =I7 -> 651 | J30: 457 | K30: 320 | L30: 251 | M30: 133 | N30: 86 | O30: 96 | P30: 465
A31: 調停 | B31: 428 | C31: =C8 -> 24 | D31: 30 | E31: 28 | F31: 20 | G31: 15 | H31: 117 | I31: =I8 -> 60 | J31: 45 | K31: 37 | L31: 31 | M31: 18 | N31: 9 | O31: 9 | P31: 102
A32: 審判 | B32: 12 | C32: 1 | D32: 1 | E32: 0 | F32: 0 | G32: 0 | H32: 2 | I32: 2 | J32: 1 | K32: 1 | L32: 1 | M32: 1 | N32: 0 | O32: 0 | P32: 4
A33: 和解 | B33: 74 | C33: =C11 -> 2 | D33: 0 | E33: 5 | F33: 2 | G33: 4 | H33: 13 | I33: =I11 -> 7 | J33: 9 | K33: 8 | L33: 8 | M33: 1 | N33: 3 | O33: 4 | P33: 21
A34: 請求の認諾 | B34: 0 | C34: 0 | D34: 0 | E34: 0 | F34: 0 | G34: 0 | H34: 0 | I34: 0 | J34: 0 | K34: 0 | L34: 0 | M34: 0 | N34: 0 | O34: 0 | P34: 0
A35: 判決 | B35: 41 | C35: =C10 -> 0 | D35: =D10 -> 1 | E35: =E10 -> 2 | F35: =F10 -> 1 | G35: =G10 -> 2 | H35: 6 | I35: =I10 -> 9 | J35: 3 | K35: 3 | L35: 1 | M35: 5 | N35: 0 | O35: 1 | P35: 13
B36: 百分率
A37: 総数 | B37: =SUM(H37:P37) -> 100 | C37: =C29/$B29*100 -> 5.737304688 | D37: 6.73828125 | E37: 6.762695312 | F37: 5.639648438 | G37: 4.907226562 | H37: 29.78515625 | I37: =I29/$B29*100 -> 17.79785156 | J37: 12.57324219 | K37: 9.008789062 | L37: 7.12890625 | M37: 3.857421875 | N37: 2.392578125 | O37: 2.685546875 | P37: 14.77050781
A38: 協議 | B38: 100 | C38: =C30/$B30*100 -> 5.874046879 | D38: 6.890708839 | E38: 6.834227619 | F38: 5.874046879 | G38: 5.083309799 | H38: 30.55634002 | I38: 18.38463711 | J38: 12.90595877 | K38: 9.036995199 | L38: 7.088393109 | M38: 3.75600113 | N38: 2.42869246 | O38: 2.71109856 | P38: 13.13188365
A39: 調停 | B39: 100 | C39: =C31/$B31*100 -> 5.607476636 | D39: 7.009345794 | E39: 6.542056075 | F39: 4.672897196 | G39: 3.504672897 | H39: 27.3364486 | I39: 14.01869159 | J39: 10.51401869 | K39: 8.644859813 | L39: 7.242990654 | M39: 4.205607477 | N39: 2.102803738 | O39: 2.102803738 | P39: 23.8317757
A40: 審判 | B40: 100 | C40: =IF(C32=0,0,C32/$B32*100) -> 8.333333333 | D40: =IF(D32=0,0,D32/$B32*100) -> 8.333333333 | E40: 0 | F40: 0 | G40: 0 | H40: 16.66666667 | I40: 16.66666667 | J40: 8.333333333 | K40: 8.333333333 | L40: 8.333333333 | M40: 8.333333333 | N40: 0 | O40: 0 | P40: 33.33333333
A41: 和解 | B41: 100 | C41: =IF(C33=0,0,C33/$B33*100) -> 2.702702703 | D41: 0 | E41: 6.756756757 | F41: 2.702702703 | G41: 5.405405405 | H41: 17.56756757 | I41: 9.459459459 | J41: 12.16216216 | K41: 10.81081081 | L41: 10.81081081 | M41: 1.351351351 | N41: 4.054054054 | O41: 5.405405405 | P41: 28.37837838
A42: 請求の認諾 | B42: 0 | C42: =IF(C34=0,0,C34/$B34*100) -> 0 | D42: 0 | E42: 0 | F42: 0 | G42: 0 | H42: 0 | I42: 0 | J42: 0 | K42: 0 | L42: 0 | M42: 0 | N42: 0 | O42: 0 | P42: 0
A43: 判決 | B43: 100 | C43: =IF(C35=0,0,C35/$B35*100) -> 0 | D43: 2.43902439 | E43: 4.87804878 | F43: 2.43902439 | G43: 4.87804878 | H43: 14.63414634 | I43: 21.95121951 | J43: 7.317073171 | K43: 7.317073171 | L43: 2.43902439 | M43: 12.19512195 | N43: 0 | O43: 2.43902439 | P43: 31.70731707

Sheet 5 同居期間別，区別離婚件数
A1: 5 同居期間別にみた区別離婚件数及び百分率
P2: ='2 届出月別，区別離婚件数・百分率'!$N$2 -> 平成28年
A3: 区 | B3: 同居期間
B4: 総 数 | C4: １年未満 | D4: 1～2年 | E4: 2～3年 | F4: 3～4年 | G4: 4～5年 | H4: 5年未満 | I4: 5～10年 | J4: 10～15年 | K4: 15～20年 | L4: 20～25年 | M4: 25～30年 | N4: 30～35年 | O4: 35年以上 | P4: 不 詳
B5: 離婚件数
A6: 総数 | B6: =SUM(H6:P6) -> 4096 | C6: =SUM(C7:C16) -> 235 | D6: =SUM(D7:D16) -> 276 | E6: 277 | F6: 231 | G6: 201 | H6: =SUM(C6:G6) -> 1220 | I6: 729 | J6: 515 | K6: 369 | L6: 292 | M6: 158 | N6: 98 | O6: 110 | P6: 605
A7: 中央 | B7: =SUM(H7:P7) -> 572 | C7: 32 | D7: 36 | E7: 42 | F7: 41 | G7: 32 | H7: =SUM(C7:G7) -> 183 | I7: 90 | J7: 60 | K7: 39 | L7: 36 | M7: 16 | N7: 12 | O7: 7 | P7: 129
A8: 北 | B8: 571 | C8: 33 | D8: 31 | E8: 30 | F8: 28 | G8: 25 | H8: 147 | I8: 95 | J8: 61 | K8: 45 | L8: 48 | M8: 23 | N8: 12 | O8: 15 | P8: 125
A9: 東 | B9: 608 | C9: 37 | D9: 35 | E9: 43 | F9: 49 | G9: 32 | H9: 196 | I9: 126 | J9: 100 | K9: 54 | L9: 44 | M9: 29 | N9: 19 | O9: 14 | P9: 26
A10: 白石 | B10: 521 | C10: 34 | D10: 47 | E10: 36 | F10: 28 | G10: 28 | H10: 173 | I10: 98 | J10: 64 | K10: 35 | L10: 24 | M10: 11 | N10: 7 | O10: 8 | P10: 101
A11: 厚別 | B11: 224 | C11: 9 | D11: 20 | E11: 11 | F11: 15 | G11: 10 | H11: 65 | I11: 33 | J11: 32 | K11: 29 | L11: 22 | M11: 13 | N11: 3 | O11: 18 | P11: 9
A12: 豊平 | B12: 491 | C12: 36 | D12: 41 | E12: 38 | F12: 20 | G12: 27 | H12: 162 | I12: 94 | J12: 51 | K12: 37 | L12: 37 | M12: 16 | N12: 4 | O12: 12 | P12: 78
A13: 清田 | B13: 209 | C13: 12 | D13: 11 | E13: 7 | F13: 6 | G13: 7 | H13: 43 | I13: 42 | J13: 37 | K13: 27 | L13: 18 | M13: 13 | N13: 9 | O13: 9 | P13: 11
A14: 南 | B14: 264 | C14: 14 | D14: 12 | E14: 14 | F14: 19 | G14: 9 | H14: 68 | I14: 43 | J14: 30 | K14: 28 | L14: 22 | M14: 11 | N14: 17 | O14: 8 | P14: 37
A15: 西 | B15: 405 | C15: 19 | D15: 27 | E15: 37 | F15: 14 | G15: 21 | H15: 118 | I15: 76 | J15: 50 | K15: 47 | L15: 27 | M15: 17 | N15: 9 | O15: 11 | P15: 50
A16: 手稲 | B16: 231 | C16: 9 | D16: 16 | E16: 19 | F16: 11 | G16: 10 | H16: 65 | I16: 32 | J16: 30 | K16: 28 | L16: 14 | M16: 9 | N16: 6 | O16: 8 | P16: 39
B17: 百分率
A18: 総数 | B18: =SUM(H18:P18) -> 100 | C18: =C6/$B6*100 -> 5.737304688 | D18: =D6/$B6*100 -> 6.73828125 | E18: 6.762695312 | F18: 5.639648438 | G18: 4.907226562 | H18: 29.78515625 | I18: 17.79785156 | J18: 12.57324219 | K18: 9.008789062 | L18: 7.12890625 | M18: 3.857421875 | N18: 2.392578125 | O18: 2.685546875 | P18: 14.77050781
A19: 中央 | B19: =SUM(H19:P19) -> 100 | C19: 5.594405594 | D19: =D7/$B7*100 -> 6.293706294 | E19: 7.342657343 | F19: 7.167832168 | G19: 5.594405594 | H19: 31.99300699 | I19: 15.73426573 | J19: 10.48951049 | K19: 6.818181818 | L19: 6.293706294 | M19: 2.797202797 | N19: 2.097902098 | O19: 1.223776224 | P19: 22.55244755
A20: 北 | B20: 100 | C20: 5.779334501 | D20: =D8/$B8*100 -> 5.429071804 | E20: 5.253940455 | F20: 4.903677758 | G20: 4.378283713 | H20: 25.74430823 | I20: 16.63747811 | J20: 10.68301226 | K20: 7.880910683 | L20: 8.406304729 | M20: 4.028021016 | N20: 2.101576182 | O20: 2.626970228 | P20: 21.89141856
A21: 東 | B21: 100 | C21: 6.085526316 | D21: =D9/$B9*100 -> 5.756578947 | E21: 7.072368421 | F21: 8.059210526 | G21: 5.263157895 | H21: 32.23684211 | I21: 20.72368421 | J21: 16.44736842 | K21: 8.881578947 | L21: 7.236842105 | M21: 4.769736842 | N21: 3.125 | O21: 2.302631579 | P21: 4.276315789
A22: 白石 | B22: 100 | C22: 6.525911708 | D22: =D10/$B10*100 -> 9.021113244 | E22: 6.909788868 | F22: 5.37428023 | G22: 5.37428023 | H22: 33.20537428 | I22: 18.80998081 | J22: 12.2840691 | K22: 6.717850288 | L22: 4.606525912 | M22: 2.111324376 | N22: 1.343570058 | O22: 1.535508637 | P22: 19.38579655
A23: 厚別 | B23: 100 | C23: 4.017857143 | D23: =D11/$B11*100 -> 8.928571429 | E23: 4.910714286 | F23: 6.696428571 | G23: 4.464285714 | H23: 29.01785714 | I23: 14.73214286 | J23: 14.28571429 | K23: 12.94642857 | L23: 9.821428571 | M23: 5.803571429 | N23: 1.339285714 | O23: 8.035714286 | P23: 4.017857143
A24: 豊平 | B24: 100 | C24: 7.33197556 | D24: =D12/$B12*100 -> 8.350305499 | E24: 7.739307536 | F24: 4.073319756 | G24: 5.49898167 | H24: 32.99389002 | I24: 19.14460285 | J24: 10.38696538 | K24: 7.535641548 | L24: 7.535641548 | M24: 3.258655804 | N24: 0.8146639511 | O24: 2.443991853 | P24: 15.88594705
A25: 清田 | B25: 100 | C25: 5.741626794 | D25: =D13/$B13*100 -> 5.263157895 | E25: 3.349282297 | F25: 2.870813397 | G25: 3.349282297 | H25: 20.57416268 | I25: 20.09569378 | J25: 17.70334928 | K25: 12.91866029 | L25: 8.612440191 | M25: 6.220095694 | N25: 4.306220096 | O25: 4.306220096 | P25: 5.263157895
A26: 南 | B26: 100 | C26: 5.303030303 | D26: 4.545454545 | E26: 5.303030303 | F26: 7.196969697 | G26: 3.409090909 | H26: 25.75757576 | I26: 16.28787879 | J26: 11.36363636 | K26: 10.60606061 | L26: 8.333333333 | M26: 4.166666667 | N26: 6.439393939 | O26: 3.03030303 | P26: 14.01515152
A27: 西 | B27: 100 | C27: =C15/$B15*100 -> 4.691358025 | D27: 6.666666667 | E27: 9.135802469 | F27: 3.456790123 | G27: 5.185185185 | H27: 29.13580247 | I27: 18.7654321 | J27: 12.34567901 | K27: 11.60493827 | L27: 6.666666667 | M27: 4.197530864 | N27: 2.222222222 | O27: 2.716049383 | P27: 12.34567901
A28: 手稲 | B28: 100 | C28: =C16/$B16*100 -> 3.896103896 | D28: 6.926406926 | E28: 8.225108225 | F28: 4.761904762 | G28: 4.329004329 | H28: 28.13852814 | I28: 13.85281385 | J28: 12.98701299 | K28: 12.12121212 | L28: 6.060606061 | M28: 3.896103896 | N28: 2.597402597 | O28: 3.463203463 | P28: 16.88311688

Sheet 6 夫妻の年齢別，離婚件数・百分率
A1: 6 夫妻の年齢（5歳階級）別にみた離婚件数及び百分率
O2: ='2 届出月別，区別離婚件数・百分率'!$N$2 -> 平成28年
A3: 妻の年齢 | B3: 夫 の 年 齢
B4: 総 数 | C4: 19歳以下 | D4: 20～24 | E4: 25～29 | F4: 30～34 | G4: 35～39 | H4: 40～44 | I4: 45～49 | J4: 50～54 | K4: 55～59 | L4: 60～64 | M4: 65～69 | N4: 70歳以上 | O4: 不 詳
B5: 離婚件数
A6: 総 数 | B6: =SUM(C6:O6) -> 4096 | C6: =SUM(C7:C19) -> 6 | D6: =SUM(D7:D19) -> 128 | E6: 422 | F6: 673 | G6: 697 | H6: 648 | I6: 513 | J6: 348 | K6: 255 | L6: 174 | M6: 139 | N6: 93 | O6: 0
A7: 19歳以下 | B7: =SUM(C7:O7) -> 14 | C7: 6 | D7: 6 | E7: 1 | F7: 0 | G7: 0 | H7: 0 | I7: 0 | J7: 1 | K7: 0 | L7: 0 | M7: 0 | N7: 0 | O7: 0
A8: 20～24 | B8: =SUM(C8:O8) -> 215 | C8: 0 | D8: 96 | E8: 72 | F8: 19 | G8: 15 | H8: 10 | I8: 2 | J8: 0 | K8: 1 | L8: 0 | M8: 0 | N8: 0 | O8: 0
A9: 25～29 | B9: 567 | C9: 0 | D9: 21 | E9: 251 | F9: 177 | G9: 71 | H9: 33 | I9: 12 | J9: 1 | K9: 0 | L9: 1 | M9: 0 | N9: 0 | O9: 0
A10: 30～34 | B10: 758 | C10: 0 | D10: 4 | E10: 71 | F10: 371 | G10: 208 | H10: 67 | I10: 24 | J10: 2 | K10: 7 | L10: 1 | M10: 2 | N10: 1 | O10: 0
A11: 35～39 | B11: 636 | C11: 0 | D11: 1 | E11: 22 | F11: 87 | G11: 296 | H11: 151 | I11: 51 | J11: 20 | K11: 4 | L11: 2 | M11: 0 | N11: 2 | O11: 0
A12: 40～44 | B12: 644 | C12: 0 | D12: 0 | E12: 5 | F12: 15 | G12: 86 | H12: 296 | I12: 165 | J12: 49 | K12: 16 | L12: 11 | M12: 1 | N12: 0 | O12: 0
A13: 45～49 | B13: 495 | C13: 0 | D13: 0 | E13: 0 | F13: 3 | G13: 17 | H13: 80 | I13: 217 | J13: 117 | K13: 43 | L13: 11 | M13: 5 | N13: 2 | O13: 0
A14: 50～54 | B14: 307 | C14: 0 | D14: 0 | E14: 0 | F14: 1 | G14: 4 | H14: 10 | I14: 34 | J14: 139 | K14: 82 | L14: 25 | M14: 9 | N14: 3 | O14: 0
A15: 55～59 | B15: 190 | C15: 0 | D15: 0 | E15: 0 | F15: 0 | G15: 0 | H15: 1 | I15: 8 | J15: 18 | K15: 90 | L15: 56 | M15: 15 | N15: 2 | O15: 0
A16: 60～64 | B16: 105 | C16: 0 | D16: 0 | E16: 0 | F16: 0 | G16: 0 | H16: 0 | I16: 0 | J16: 0 | K16: 9 | L16: 49 | M16: 38 | N16: 9 | O16: 0
A17: 65～69 | B17: 92 | C17: 0 | D17: 0 | E17: 0 | F17: 0 | G17: 0 | H17: 0 | I17: 0 | J17: 1 | K17: 3 | L17: 12 | M17: 56 | N17: 20 | O17: 0
A18: 70歳～ | B18: 73 | C18: 0 | D18: 0 | E18: 0 | F18: 0 | G18: 0 | H18: 0 | I18: 0 | J18: 0 | K18: 0 | L18: 6 | M18: 13 | N18: 54 | O18: 0
A19: 不 詳 | B19: 0 | C19: 0 | D19: 0 | E19: 0 | F19: 0 | G19: 0 | H19: 0 | I19: 0 | J19: 0 | K19: 0 | L19: 0 | M19: 0 | N19: 0 | O19: 0
B20: 百分率
A21: 総 数 | B21: =SUM(C21:O21) -> 100 | C21: =C6/$B$6*100 -> 0.146484375 | D21: =D6/$B$6*100 -> 3.125 | E21: 10.30273438 | F21: 16.43066406 | G21: 17.01660156 | H21: 15.8203125 | I21: 12.52441406 | J21: 8.49609375 | K21: 6.225585938 | L21: 4.248046875 | M21: 3.393554688 | N21: 2.270507812 | O21: 0
A22: 19歳以下 | B22: =B7/$B$6*100 -> 0.341796875 | C22: =C7/$B$6*100 -> 0.146484375 | D22: =D7/$B$6*100 -> 0.146484375 | E22: =E7/$B$6*100 -> 0.0244140625 | F22: 0 | G22: 0 | H22: 0 | I22: 0 | J22: 0.0244140625 | K22: 0 | L22: 0 | M22: 0 | N22: 0 | O22: 0
A23: 20～24 | B23: 5.249023438 | C23: 0 | D23: =D8/$B$6*100 -> 2.34375 | E23: 1.7578125 | F23: 0.4638671875 | G23: 0.3662109375 | H23: 0.244140625 | I23: 0.048828125 | J23: 0 | K23: 0.0244140625 | L23: 0 | M23: 0 | N23: 0 | O23: 0
A24: 25～29 | B24: 13.84277344 | C24: 0 | D24: =D9/$B$6*100 -> 0.5126953125 | E24: 6.127929688 | F24: 4.321289062 | G24: 1.733398438 | H24: 0.8056640625 | I24: 0.29296875 | J24: 0.0244140625 | K24: 0 | L24: 0.0244140625 | M24: 0 | N24: 0 | O24: 0
A25: 30～34 | B25: 18.50585938 | C25: 0 | D25: =D10/$B$6*100 -> 0.09765625 | E25: 1.733398438 | F25: 9.057617188 | G25: 5.078125 | H25: 1.635742188 | I25: 0.5859375 | J25: 0.048828125 | K25: 0.1708984375 | L25: 0.0244140625 | M25: 0.048828125 | N25: 0.0244140625 | O25: 0
A26: 35～39 | B26: 15.52734375 | C26: 0 | D26: =D11/$B$6*100 -> 0.0244140625 | E26: 0.537109375 | F26: 2.124023438 | G26: 7.2265625 | H26: 3.686523438 | I26: 1.245117188 | J26: 0.48828125 | K26: 0.09765625 | L26: 0.048828125 | M26: 0 | N26: 0.048828125 | O26: 0
A27: 40～44 | B27: 15.72265625 | C27: 0 | D27: =D12/$B$6*100 -> 0 | E27: 0.1220703125 | F27: 0.3662109375 | G27: 2.099609375 | H27: 7.2265625 | I27: 4.028320312 | J27: 1.196289062 | K27: 0.390625 | L27: 0.2685546875 | M27: 0.0244140625 | N27: 0 | O27: 0
A28: 45～49 | B28: 12.08496094 | C28: 0 | D28: =D13/$B$6*100 -> 0 | E28: 0 | F28: 0.0732421875 | G28: 0.4150390625 | H28: 1.953125 | I28: 5.297851562 | J28: 2.856445312 | K28: 1.049804688 | L28: 0.2685546875 | M28: 0.1220703125 | N28: 0.048828125 | O28: 0
A29: 50～54 | B29: 7.495117188 | C29: 0 | D29: =D14/$B$6*100 -> 0 | E29: 0 | F29: 0.0244140625 | G29: 0.09765625 | H29: 0.244140625 | I29: 0.830078125 | J29: 3.393554688 | K29: 2.001953125 | L29: 0.6103515625 | M29: 0.2197265625 | N29: 0.0732421875 | O29: 0
A30: 55～59 | B30: 4.638671875 | C30: 0 | D30: =D15/$B$6*100 -> 0 | E30: 0 | F30: 0 | G30: 0 | H30: 0.0244140625 | I30: 0.1953125 | J30: 0.439453125 | K30: 2.197265625 | L30: 1.3671875 | M30: 0.3662109375 | N30: 0.048828125 | O30: 0
A31: 60～64 | B31: 2.563476562 | C31: 0 | D31: =D16/$B$6*100 -> 0 | E31: 0 | F31: 0 | G31: 0 | H31: 0 | I31: 0 | J31: 0 | K31: 0.2197265625 | L31: 1.196289062 | M31: 0.927734375 | N31: 0.2197265625 | O31: 0
A32: 65～69 | B32: 2.24609375 | C32: 0 | D32: =D17/$B$6*100 -> 0 | E32: 0 | F32: 0 | G32: 0 | H32: 0 | I32: 0 | J32: 0.0244140625 | K32: 0.0732421875 | L32: 0.29296875 | M32: 1.3671875 | N32: 0.48828125 | O32: 0
A33: 70歳～ | B33: 1.782226562 | C33: =C18/$B$6*100 -> 0 | D33: 0 | E33: 0 | F33: 0 | G33: 0 | H33: 0 | I33: 0 | J33: 0 | K33: 0 | L33: 0.146484375 | M33: 0.3173828125 | N33: 1.318359375 | O33: 0
A34: 不 詳 | B34: 0 | C34: =C19/$B$6*100 -> 0 | D34: 0 | E34: 0 | F34: 0 | G34: 0 | H34: 0 | I34: 0 | J34: 0 | K34: 0 | L34: 0 | M34: 0 | N34: 0 | O34: 0

Sheet 7 親権を行う子の数別，年次別離婚件数・百分率
A1: 7 夫妻が親権を行う子1)の数別にみた年次別離婚件数及び百分率
A3: 年 次 | B3: 総 数 | C3: 子供なし | D3: 子 供 あ り
E4: 1人 | F4: 2人 | G4: 3人 | H4: 4人 | I4: 5人以上
B5: 離婚件数
A6: 85 60 | B6: =SUM(C6:D6) -> 3879 | C6: 1402 | D6: =SUM(E6:I6) -> 2477 | E6: 1141 | F6: 992 | G6: 280 | H6: 52 | I6: 12
A7: 1986 昭和61年 | B7: =SUM(C7:D7) -> 3784 | C7: 1404 | D7: =SUM(E7:I7) -> 2380 | E7: 1090 | F7: 966 | G7: 254 | H7: 60 | I7: 10
A8: 1987 昭和62年 | B8: =SUM(C8:D8) -> 3467 | C8: 1307 | D8: =SUM(E8:I8) -> 2160 | E8: 1044 | F8: 839 | G8: 226 | H8: 38 | I8: 13
A9: 1988 昭和63年 | B9: 3316 | C9: 1255 | D9: 2061 | E9: 1010 | F9: 788 | G9: 222 | H9: 35 | I9: 6
A10: 89 平成元年 | B10: 3413 | C10: 1351 | D10: 2062 | E10: 993 | F10: 793 | G10: 237 | H10: 31 | I10: 8
A11: 90 2 | B11: 3381 | C11: 1351 | D11: 2030 | E11: 998 | F11: 784 | G11: 211 | H11: 28 | I11: 9
A12: 91 3 | B12: 3492 | C12: 1418 | D12: 2074 | E12: 1030 | F12: 771 | G12: 228 | H12: 31 | I12: 14
A13: 92 4 | B13: 3714 | C13: 1585 | D13: 2129 | E13: 1066 | F13: 817 | G13: 213 | H13: 25 | I13: 8
A14: 1993 平成5年 | B14: 3869 | C14: 1609 | D14: 2260 | E14: 1155 | F14: 830 | G14: 229 | H14: 37 | I14: 9
A15: 94 6 | B15: 3906 | C15: 1616 | D15: 2290 | E15: 1148 | F15: 871 | G15: 231 | H15: 33 | I15: 7
A16: 95 7 | B16: 4137 | C16: 1863 | D16: 2274 | E16: 1190 | F16: 842 | G16: 198 | H16: 35 | I16: 9
A17: 96 8 | B17: 4161 | C17: 1719 | D17: 2442 | E17: 1244 | F17: 921 | G17: 235 | H17: 30 | I17: 12
A18: 97 9 | B18: 4495 | C18: 1963 | D18: 2532 | E18: 1306 | F18: 923 | G18: 238 | H18: 49 | I18: 16
A19: 1998 平成10年 | B19: 4911 | C19: 2143 | D19: 2768 | E19: 1409 | F19: 1028 | G19: 273 | H19: 39 | I19: 19
A20: 99 11 | B20: 4915 | C20: 2077 | D20: 2838 | E20: 1444 | F20: 1040 | G20: 293 | H20: 53 | I20: 8
A21: 2000 12 | B21: 5067 | C21: 2185 | D21: 2882 | E21: 1481 | F21: 1079 | G21: 257 | H21: 50 | I21: 15
A22: 01 13 | B22: 5482 | C22: 2336 | D22: 3146 | E22: 1558 | F22: 1206 | G22: 333 | H22: 42 | I22: 7
A23: 02 14 | B23: 5269 | C23: 2236 | D23: 3033 | E23: 1510 | F23: 1111 | G23: 336 | H23: 64 | I23: 12
A24: 03 15 | B24: 5265 | C24: 2146 | D24: 3119 | E24: 1601 | F24: 1129 | G24: 304 | H24: 65 | I24: 20
A25: 04 16 | B25: 5140 | C25: 2154 | D25: 2986 | E25: 1520 | F25: 1100 | G25: 312 | H25: 46 | I25: 8
A26: 05 17 | B26: 4791 | C26: 2032 | D26: 2759 | E26: 1417 | F26: 1032 | G26: 258 | H26: 44 | I26: 8
A27: 06 18 | B27: 4698 | C27: 2040 | D27: 2658 | E27: 1374 | F27: 996 | G27: 224 | H27: 56 | I27: 8
A28: 07 19 | B28: 4638 | C28: 2005 | D28: 2633 | E28: 1334 | F28: 988 | G28: 252 | H28: 48 | I28: 11
A29: 08 20 | B29: 4596 | C29: 1997 | D29: 2599 | E29: 1325 | F29: 984 | G29: 237 | H29: 43 | I29: 10
A30: 09 21 | B30: 4595 | C30: 1929 | D30: 2666 | E30: 1345 | F30: 975 | G30: 274 | H30: 58 | I30: 14
A31: 10 22 | B31: 4727 | C31: 1979 | D31: 2748 | E31: 1418 | F31: 997 | G31: 270 | H31: 53 | I31: 10
A32: 11 23 | B32: 4643 | C32: 1958 | D32: 2685 | E32: 1359 | F32: 1001 | G32: 275 | H32: 35 | I32: 15
A33: 12 24 | B33: 4555 | C33: 1908 | D33: 2647 | E33: 1363 | F33: 960 | G33: 265 | H33: 47 | I33: 12
A34: 13 25 | B34: 4413 | C34: 1955 | D34: 2458 | E34: 1262 | F34: 899 | G34: 250 | H34: 37 | I34: 10
A35: 14 26 | B35: 4182 | C35: 1831 | D35: 2351 | E35: 1212 | F35: 846 | G35: 231 | H35: 52 | I35: 10
A36: 15 27 | B36: 4492 | C36: 1949 | D36: 2543 | E36: 1269 | F36: 915 | G36: 292 | H36: 51 | I36: 16
A37: 16 28 | B37: =SUM(C37:D37) -> 4096 | C37: ='[2]■7 親権を行う子の数別，年次別離婚件数・百分率'!$C$6 -> 1762 | D37: =SUM(E37:I37) -> 2334 | E37: ='[2]■7 親権を行う子の数別，年次別離婚件数・百分率'!$E$6 -> 1201 | F37: ='[2]■7 親権を行う子の数別，年次別離婚件数・百分率'!$F$6 -> 852 | G37: ='[2]■7 親権を行う子の数別，年次別離婚件数・百分率'!$G$6 -> 220 | H37: ='[2]■7 親権を行う子の数別，年次別離婚件数・百分率'!$H$6 -> 42 | I37: ='[2]■7 親権を行う子の数別，年次別離婚件数・百分率'!$I$6 -> 19
B38: 百分率
A39: 85 60 | B39: =SUM(C39:D39) -> 100 | C39: =C6/$B6*100 -> 36.14333591 | D39: 63.85666409 | E39: 29.41479763 | F39: 25.57360144 | G39: 7.218355246 | H39: 1.340551689 | I39: 0.309358082
A40: 1986 昭和61年 | B40: =SUM(C40:D40) -> 100 | C40: 37.10359408 | D40: 62.89640592 | E40: 28.80549683 | F40: 25.52854123 | G40: 6.712473573 | H40: 1.585623679 | I40: 0.2642706131
A41: 1987 昭和62年 | B41: =SUM(C41:D41) -> 100 | C41: 37.69829824 | D41: 62.30170176 | E41: 30.11248918 | F41: 24.19959619 | G41: 6.51860398 | H41: 1.096048457 | I41: 0.3749639458
A42: 1988 昭和63年 | B42: 100 | C42: 37.84680338 | D42: 62.15319662 | E42: 30.45838359 | F42: 23.76357057 | G42: 6.694813028 | H42: 1.05548854 | I42: 0.1809408926
A43: 89 平成元年 | B43: 100 | C43: 39.58394374 | D43: 60.41605626 | E43: 29.09463815 | F43: 23.23469089 | G43: 6.944037504 | H43: 0.9082918254 | I43: 0.2343978904
A44: 90 2 | B44: 100 | C44: 39.95859213 | D44: 60.04140787 | E44: 29.51789411 | F44: 23.1884058 | G44: 6.240757172 | H44: 0.8281573499 | I44: 0.2661934339
A45: 91 3 | B45: 100 | C45: 40.60710195 | D45: 59.39289805 | E45: 29.49599084 | F45: 22.0790378 | G45: 6.529209622 | H45: 0.8877434135 | I45: 0.4009163803
A46: 92 4 | B46: 100 | C46: 42.67635972 | D46: 57.32364028 | E46: 28.70220786 | F46: 21.99784599 | G46: 5.735056543 | H46: 0.6731287022 | I46: 0.2154011847
A47: 1993 平成5年 | B47: 100 | C47: 41.58697338 | D47: 58.41302662 | E47: 29.85267511 | F47: 21.45257172 | G47: 5.918842078 | H47: 0.9563194624 | I47: 0.2326182476
A48: 94 6 | B48: 100 | C48: 41.37224782 | D48: 58.62775218 | E48: 29.390681 | F48: 22.29902714 | G48: 5.913978495 | H48: 0.8448540707 | I48: 0.1792114695
A49: 95 7 | B49: 100 | C49: 45.03263234 | D49: 54.96736766 | E49: 28.76480541 | F49: 20.35291274 | G49: 4.786076867 | H49: 0.8460236887 | I49: 0.2175489485
A50: 96 8 | B50: 100 | C50: 41.31218457 | D50: 58.68781543 | E50: 29.89665946 | F50: 22.13410238 | G50: 5.647680846 | H50: 0.7209805335 | I50: 0.2883922134
A51: 97 9 | B51: 100 | C51: 43.67074527 | D51: 56.32925473 | E51: 29.05450501 | F51: 20.53392659 | G51: 5.294771969 | H51: 1.090100111 | I51: 0.3559510567
A52: 1998 平成10年 | B52: 100 | C52: 43.63673386 | D52: 56.36326614 | E52: 28.69069436 | F52: 20.93260029 | G52: 5.558949297 | H52: 0.7941356139 | I52: 0.3868865811
A53: 99 11 | B53: 100 | C53: 42.25839268 | D53: 57.74160732 | E53: 29.37945066 | F53: 21.15971516 | G53: 5.961342828 | H53: 1.078331638 | I53: 0.1627670397
A54: 2000 12 | B54: 100 | C54: 43.12216302 | D54: 56.87783698 | E54: 29.22834024 | F54: 21.29465167 | G54: 5.072034735 | H54: 0.9867771857 | I54: 0.2960331557
A55: 01 13 | B55: 100 | C55: 42.61218533 | D55: 57.38781467 | E55: 28.42028457 | F55: 21.99927034 | G55: 6.074425392 | H55: 0.7661437432 | I55: 0.1276906239
A56: 02 14 | B56: 100 | C56: 42.43689505 | D56: 57.56310495 | E56: 28.65818941 | F56: 21.08559499 | G56: 6.376921617 | H56: 1.214651737 | I56: 0.2277472006
A57: 03 15 | B57: 100 | C57: 40.75973409 | D57: 59.24026591 | E57: 30.40835708 | F57: 21.44349478 | G57: 5.773979107 | H57: 1.234567901 | I57: 0.3798670465
A58: 04 16 | B58: 100 | C58: 41.90661479 | D58: 58.09338521 | E58: 29.57198444 | F58: 21.40077821 | G58: 6.070038911 | H58: 0.8949416342 | I58: 0.1556420233
A59: 05 17 | B59: 100 | C59: 42.41285744 | D59: 57.58714256 | E59: 29.57628887 | F59: 21.54038823 | G59: 5.385097057 | H59: 0.9183886454 | I59: 0.1669797537
A60: 06 18 | B60: 100 | C60: 43.42273308 | D60: 56.57726692 | E60: 29.24648787 | F60: 21.20051086 | G60: 4.767986377 | H60: 1.191996594 | I60: 0.1702852278
A61: 07 19 | B61: 100 | C61: 43.22984045 | D61: 56.77015955 | E61: 28.76239759 | F61: 21.30228547 | G61: 5.433376455 | H61: 1.034928849 | I61: 0.2371711945
A62: 08 20 | B62: 100 | C62: 43.45082681 | D62: 56.54917319 | E62: 28.82941688 | F62: 21.40992167 | G62: 5.156657963 | H62: 0.9355961706 | I62: 0.2175805048
A63: 09 21 | B63: 100 | C63: 41.98041349 | D63: 58.01958651 | E63: 29.27094668 | F63: 21.218716 | G63: 5.963003264 | H63: 1.262241567 | I63: 0.3046789989
A64: 10 22 | B64: 100 | C64: 41.86587688 | D64: 58.13412312 | E64: 29.99788449 | F64: 21.09160144 | G64: 5.711867992 | H64: 1.121218532 | I64: 0.2115506664
A65: 11 23 | B65: 100 | C65: 42.17101012 | D65: 57.82898988 | E65: 29.26986862 | F65: 21.55933664 | G65: 5.92289468 | H65: 0.7538229593 | I65: 0.3230669826
A66: 12 24 | B66: 100 | C66: 41.88803513 | D66: 58.11196487 | E66: 29.92316136 | F66: 21.07574094 | G66: 5.817782656 | H66: 1.03183315 | I66: 0.2634467618
A67: 13 25 | B67: 100 | C67: 44.30092907 | D67: 55.69907093 | E67: 28.59732608 | F67: 20.37162928 | G67: 5.665080444 | H67: 0.8384319057 | I67: 0.2266032178
A68: 14 26 | B68: 100 | C68: 43.78287901 | D68: 56.21712099 | E68: 28.98134864 | F68: 20.22955524 | G68: 5.523672884 | H68: 1.243424199 | I68: 0.2391200383
A69: 15 27 | B69: 100 | C69: 43.38824577 | D69: 56.61175423 | E69: 28.25022262 | F69: 20.36954586 | G69: 6.500445236 | H69: 1.135351736 | I69: 0.3561887801
A70: 16 28 | B70: =SUM(C70:D70) -> 100 | C70: =C37/$B37*100 -> 43.01757812 | D70: 56.98242188 | E70: 29.32128906 | F70: 20.80078125 | G70: 5.37109375 | H70: 1.025390625 | I70: 0.4638671875
A71: 1) 親権を行う子とは、20歳未満の未婚の子をいう。
